{"text_format":"1","workbook":"xlsx","n_sheets":2,"sheets":["Pasiūlymas","Subtiekėjai"],"not_rendered":{"charts":0,"images":0,"macros":1,"external_links":0,"defined_names":0,"comments":0,"pivot_tables":0},"unopened":[],"bounds":{"document_bytes":16777216,"sheet_cells":100000,"rows_first":2000,"rows_last":500,"rows_between":2000,"halvings":0,"cell_chars":16384,"cell_head_chars":4096},"cells_cut":0,"cells_raw":0,"read":"whole","date_system":"1900"}

{"sheet":"Pasiūlymas","index":0,"n_rows":784,"n_cols":13,"rows_kept":784,"cut":false,"hidden":false,"merged":[[18,0,18,1],[18,2,18,4],[19,0,19,1],[19,2,19,4],[22,0,22,5],[15,0,15,1],[15,2,15,4],[16,0,16,1],[16,2,16,4],[17,0,17,1],[17,2,17,4],[12,0,12,1],[12,2,12,4],[13,0,13,1],[13,2,13,4],[14,0,14,1],[14,2,14,4],[9,0,9,1],[9,2,9,4],[10,0,10,1],[10,2,10,4],[11,0,11,1],[11,2,11,4],[28,1,28,7],[132,1,132,7],[172,1,172,7],[185,1,185,7],[201,1,201,7],[235,1,235,7],[250,1,250,7],[271,1,271,7],[305,1,305,7],[322,1,322,7],[334,1,334,7],[388,1,388,7],[429,1,429,7],[542,1,542,7],[586,1,586,7],[751,1,751,7],[621,1,621,7],[632,1,632,7],[669,1,669,7],[682,1,682,7],[717,1,717,7]]}
["Perkančioji organizacija, kuriai teikiamas pasiūlymas:",null,"VŠĮ Kauno klinikinė ligoninė"]
[]
[null,"PASIŪLYMAS"]
[null,"Maisto produktų pirkimas"]
[]
["Data:","2020-04-27"]
["Nr.:","P01/1-200427"]
["Vieta:","Kaunas"]
[]
["Tiekėjo pavadinimas /Jeigu dalyvauja ūkio subjektų grupė, surašomi visi dalyvių pavadinimai/",null,"UAB \"Samsonas\""]
["Įmonės kodas /Jeigu dalyvauja ūkio subjektų grupė, surašomi visi dalyvių kodai/",null,133140587]
["PVM mokėtojo kodas /Jeigu dalyvauja ūkio subjektų grupė, surašomi visi dalyvių kodai/",null,"LT331405811"]
["Banko pavadinimas, banko kodas, sąskaitos Nr.",null,"LT277044060002846368, SEB bankas"]
["Tiekėjo adresas /Jeigu dalyvauja ūkio subjektų grupė, surašomi visi dalyvių adresai/",null,"Europos pr. 38, LT-46369"]
["Telefono numeris",null,"(8 37) 490670"]
["Fakso numeris"]
["El. pašto adresas",null,"ofisas@samsonas.lt"]
["Asmens, pasirašiusio pasiūlymą saugiu elektroniniu parašu, vardas, pavardė, pareigos ",null,"Andrius Lepinaitis, gen. direktoriaus pavad."]
["Asmens, įgalioto pasirašyti sutartį, vardas, pavardė, pareigos",null,"Henrikas Urbšta, generalinis direktorius"]
[]
[]
[]
["1. Šiuo pasiūlymu pažymime, kad sutinkame su visomis pirkimo sąlygomis, nustatytomis:\n1) pirkimo skelbime, paskelbtame Viešųjų pirkimų įstatymo nustatyta tvarka;\n2) pirkimo sąlygose ir kituose pirkimo dokumentuose (jų paaiškinimuose, papildymuose).\n"]
[]
["Siūlomas pirkimo objektas visiškai atitinka pirkimo sąlygose nustatytus reikalavimus ir jo kaina yra:"]
[]
[]
["Nr.","Pavadinimas","Kiekis","Mato vienetas","Kaina be PVM, Eur","Suma be PVM, Eur","Siūlomi produktai","Siūlomo produkto parametrai",null,null,"","",""]
["1.","Pienas ir pieno produktai"]
["1.1.","Pienas 2,5%",150000,"L",null,{"$f":"IF(ISBLANK(E30),\"\", PRODUCT(C30,E30))","v":""},null,null,null,""]
["1.1.1.","Maisto produktas turi atitikti Lietuvos Respublikos sveikatos apsaugos ministro įsakymo \"Dėl pacientų maitinimo organizavimo asmens sveikatos priežiūros įstaigose tvarkos aprašo\" 2019-08-20 Nr. V-1000 reikalavimus ir aktualias redakcijas"]
["1.1.2.","2,5% riebumo"]
["1.1.3.","0,9-1 l polietileno talpose",null,null,null,null,null,null,null,""]
["1.1.4.","aukščiausios rūšies",null,null,null,null,null,null,null,null,null,""]
["1.1.5.","pasterizuotas aukštoje temperatūroje (ne ultraaukštoje)",null,null,null,null,null,null,null,null,null,""]
["1.1.6.","balto ar gelsvo atspalvio, be specifinio pašarų ar kitų medžiagų skonio ar kvapo",null,null,null,null,null,null,null,"","",""]
["1.1.7.","neužšaldytas",null,null,null,null,null,null,null,"","",""]
["1.1.8.","Ekologiškas – turi būti ekologiškai pagamintas pagal tarybos reglamentą Nr. 834/2007 „Dėl ekologinės gamybos ir ekologiškų produktų ženklinimo iir panaikinantis reglamentą (EEB) Nr. 2092/91“, turi būti pateikti atitiktį reikalavimams įrodantys dokumentai: ekologinės gamybos patvirtinamieji dokumentai, sertifikatai ar kiti lygiaverčiai įrodymai",null,null,null,null,null,null,null,"","",""]
["1.1.9.","Produktai turi būti ženklinti nurodant: pavadinimą, kiekį, gamintoją, adresą, telefono numerį, standartą, pagaminimo datą, tinkamumą vartoti iki (nurodant datą), 100g maistinę ir energetinę vertę, laikymo sąlygas"]
["1.2.","Kefyras 2,5%",30000,"L",null,{"$f":"IF(ISBLANK(E40),\"\", PRODUCT(C40,E40))","v":""}]
["1.2.1.","Maisto produktas turi atitikti Lietuvos Respublikos sveikatos apsaugos ministro įsakymo \"Dėl pacientų maitinimo organizavimo asmens sveikatos priežiūros įstaigose tvarkos aprašo\" 2019-08-20 Nr. V-1000 reikalavimus ir aktualias redakcijas",null,null,null,null,null,null,null,""]
["1.2.2.","2,5% riebumo"]
["1.2.3.","0,9-1 l polietileno talpose",null,null,null,null,null,null,null,null,null,""]
["1.2.4.","pagamintas iš aukščiausios rūšies pieno",null,null,null,null,null,null,null,"",null,""]
["1.2.5.","balto ar gelsvo atspalvio, be specifinio pašarų ar kitų medžiagų skonio ar kvapo",null,null,null,null,null,null,null,null,null,""]
["1.2.6.","neužšaldytas"]
["1.2.7.","Produktai turi būti ženklinti nurodant: pavadinimą, kiekį, gamintoją, adresą, telefono numerį, standartą, pagaminimo datą, tinkamumą vartoti iki (nurodant datą), 100g maistinę ir energetinę vertę, laikymo sąlygas",null,null,null,null,null,null,null,"","",""]
["1.3.","Sviestas 82% (luitais)",5000,"kg",null,{"$f":"IF(ISBLANK(E48),\"\", PRODUCT(C48,E48))","v":""},null,null,null,"","",""]
["1.3.1.","Maisto produktas turi atitikti Lietuvos Respublikos sveikatos apsaugos ministro įsakymo \"Dėl pacientų maitinimo organizavimo asmens sveikatos priežiūros įstaigose tvarkos aprašo\" 2019-08-20 Nr. V-1000 reikalavimus ir aktualias redakcijas",null,null,null,null,null,null,null,"","",""]
["1.3.2.","82% riebumo"]
["1.3.3.","luitais po 20-25 kg"]
["1.3.4.","pagamintas iš aukščiausios rūšies pieno"]
["1.3.5.","vienalytės konsistencijos, be augalinių riebalų priedų, gelsvos spalvos"]
["1.3.6.","neužšaldytas"]
["1.3.7.","Produktai turi būti ženklinti nurodant: pavadinimą, kiekį, gamintoją, adresą, telefono numerį, standartą, pagaminimo datą, tinkamumą vartoti iki (nurodant datą), 100g maistinę ir energetinę vertę, laikymo sąlygas"]
["1.4.","Sviestas 82% (pakeliais)",15000,"kg",null,{"$f":"IF(ISBLANK(E56),\"\", PRODUCT(C56,E56))","v":""}]
["1.4.1.","Maisto produktas turi atitikti Lietuvos Respublikos sveikatos apsaugos ministro įsakymo \"Dėl pacientų maitinimo organizavimo asmens sveikatos priežiūros įstaigose tvarkos aprašo\" 2019-08-20 Nr. V-1000 reikalavimus ir aktualias redakcijas"]
["1.4.2.","82% riebumo"]
["1.4.3.","luitais po 0,18 arba 0,2 kg"]
["1.4.4.","pagamintas iš aukščiausios rūšies pieno"]
["1.4.5.","vienalytės konsistencijos, be augalinių riebalų priedų, gelsvos spalvos"]
["1.4.6.","neužšaldytas"]
["1.4.7.","Produktai turi būti ženklinti nurodant: pavadinimą, kiekį, gamintoją, adresą, telefono numerį, standartą, pagaminimo datą, tinkamumą vartoti iki (nurodant datą), 100g maistinę ir energetinę vertę, laikymo sąlygas"]
["1.5.","Grietinė 30%",15000,"kg",null,{"$f":"IF(ISBLANK(E64),\"\", PRODUCT(C64,E64))","v":""}]
["1.5.1.","Maisto produktas turi atitikti Lietuvos Respublikos sveikatos apsaugos ministro įsakymo \"Dėl pacientų maitinimo organizavimo asmens sveikatos priežiūros įstaigose tvarkos aprašo\" 2019-08-20 Nr. V-1000 reikalavimus ir aktualias redakcijas"]
["1.5.2.","30% riebumo"]
["1.5.3.","pristatoma 1-5 kg kibirėliuose"]
["1.5.4.","pagamintas iš aukščiausios rūšies pieno"]
["1.5.5.","balto ar gelsvo atspalvio, be specifinio pašarų ar kitų medžiagų skonio ar kvapo"]
["1.5.6.","be augalinių riebalų priedų"]
["1.5.7.","Produktai turi būti ženklinti nurodant: pavadinimą, kiekį, gamintoją, adresą, telefono numerį, standartą, pagaminimo datą, tinkamumą vartoti iki (nurodant datą), 100g maistinę ir energetinę vertę, laikymo sąlygas"]
["1.6.","varškė 9% (po 1 kg)",5000,"kg",null,{"$f":"IF(ISBLANK(E72),\"\", PRODUCT(C72,E72))","v":""}]
["1.6.1.","Maisto produktas turi atitikti Lietuvos Respublikos sveikatos apsaugos ministro įsakymo \"Dėl pacientų maitinimo organizavimo asmens sveikatos priežiūros įstaigose tvarkos aprašo\" 2019-08-20 Nr. V-1000 reikalavimus ir aktualias redakcijas"]
["1.6.2.","9% riebumo"]
["1.6.3.","pristatoma fasuota po 1 +/-0,1kg"]
["1.6.4.","iš aukščiausios rūšies pieno"]
["1.6.5.","spalva balta, baltai gelsva, konsistencija vienalytė, gali būti kruopėta, puri"]
["1.6.6.","skonis ne rūgštus"]
["1.6.7.","neužšaldytas"]
["1.6.8.","Produktai turi būti ženklinti nurodant: pavadinimą, kiekį, gamintoją, adresą, telefono numerį, standartą, pagaminimo datą, tinkamumą vartoti iki (nurodant datą), 100g maistinę ir energetinę vertę, laikymo sąlygas"]
["1.7.","varškė 9% (po 5 kg)",10000,"kg",null,{"$f":"IF(ISBLANK(E81),\"\", PRODUCT(C81,E81))","v":""}]
["1.7.1.","Maisto produktas turi atitikti Lietuvos Respublikos sveikatos apsaugos ministro įsakymo \"Dėl pacientų maitinimo organizavimo asmens sveikatos priežiūros įstaigose tvarkos aprašo\" 2019-08-20 Nr. V-1000 reikalavimus ir aktualias redakcijas"]
["1.7.2.","9% riebumo"]
["1.7.3.","pristatoma fasuota po 5 +/-0,2kg"]
["1.7.4.","iš aukščiausios rūšies pieno"]
["1.7.5.","spalva balta, baltai gelsva, konsistencija vienalytė, gali būti kruopėta, puri"]
["1.7.6.","skonis ne rūgštus"]
["1.7.7.","neužšaldytas"]
["1.7.8.","Produktai turi būti ženklinti nurodant: pavadinimą, kiekį, gamintoją, adresą, telefono numerį, standartą, pagaminimo datą, tinkamumą vartoti iki (nurodant datą), 100g maistinę ir energetinę vertę, laikymo sąlygas"]
["1.8.","Fermentinis sūris 45% (ne sūrio gaminys)",8000,"kg",null,{"$f":"IF(ISBLANK(E90),\"\", PRODUCT(C90,E90))","v":""}]
["1.8.1.","Maisto produktas turi atitikti Lietuvos Respublikos sveikatos apsaugos ministro įsakymo \"Dėl pacientų maitinimo organizavimo asmens sveikatos priežiūros įstaigose tvarkos aprašo\" 2019-08-20 Nr. V-1000 reikalavimus ir aktualias redakcijas"]
["1.8.2.","45% riebumo"]
["1.8.3.","fasuotas gabalais iki 5 kg"]
["1.8.4.","pagamintas iš aukščiausios rūšies pieno"]
["1.8.5.","stačiakampio formos sūris, padengtaspolimerine plėvele"]
["1.8.6.","sūrio paviršius neapdžiuvęs, ne apipelijęs, konsistencija rišli, standoka, spalva nuo gelsvos iki geltonos, piešinio pjūvyje gali būti truputis tuštumų"]
["1.8.7.","Produktai turi būti ženklinti nurodant: pavadinimą, kiekį, gamintoją, adresą, telefono numerį, standartą, pagaminimo datą, tinkamumą vartoti iki (nurodant datą), 100g maistinę ir energetinę vertę, laikymo sąlygas"]
["1.9.","Natūralus jogurtas",20000,"kg",null,{"$f":"IF(ISBLANK(E98),\"\", PRODUCT(C98,E98))","v":""}]
["1.9.1.","Maisto produktas turi atitikti Lietuvos Respublikos sveikatos apsaugos ministro įsakymo \"Dėl pacientų maitinimo organizavimo asmens sveikatos priežiūros įstaigose tvarkos aprašo\" 2019-08-20 Nr. V-1000 reikalavimus ir aktualias redakcijas"]
["1.9.2.","2,4-3,9% riebumo"]
["1.9.3.","fasuotas indeliuose po 120 +/- 10 g"]
["1.9.4.","pagamintas iš aukščiausios rūšies pieno"]
["1.9.5.","natūralus, be priedų"]
["1.9.6.","Ekologiškas – turi būti ekologiškai pagamintas pagal tarybos reglamentą Nr. 834/2007 „Dėl ekologinės gamybos ir ekologiškų produktų ženklinimo iir panaikinantis reglamentą (EEB) Nr. 2092/91“, turi būti pateikti atitiktį reikalavimams įrodantys dokumentai: ekologinės gamybos patvirtinamieji dokumentai, sertifikatai ar kiti lygiaverčiai įrodymai"]
["1.9.7.","Produktai turi būti ženklinti nurodant: pavadinimą, kiekį, gamintoją, adresą, telefono numerį, standartą, pagaminimo datą, tinkamumą vartoti iki (nurodant datą), 100g maistinę ir energetinę vertę, laikymo sąlygas"]
["1.10.","Grūdėta varškė ",3000,"kg",null,{"$f":"IF(ISBLANK(E106),\"\", PRODUCT(C106,E106))","v":""}]
["1.10.1.","Maisto produktas turi atitikti Lietuvos Respublikos sveikatos apsaugos ministro įsakymo \"Dėl pacientų maitinimo organizavimo asmens sveikatos priežiūros įstaigose tvarkos aprašo\" 2019-08-20 Nr. V-1000 reikalavimus ir aktualias redakcijas"]
["1.10.2.","7 +/- 1% riebumo"]
["1.10.3.","fasuotas po 150-200 g"]
["1.10.4.","pagamintas iš aukščiausios rūšies pieno"]
["1.10.5.","be priedų"]
["1.10.6.","Produktai turi būti ženklinti nurodant: pavadinimą, kiekį, gamintoją, adresą, telefono numerį, standartą, pagaminimo datą, tinkamumą vartoti iki (nurodant datą), 100g maistinę ir energetinę vertę, laikymo sąlygas"]
["1.11.","Šaltibarščių kefyras ",3000,"L",null,{"$f":"IF(ISBLANK(E113),\"\", PRODUCT(C113,E113))","v":""}]
["1.11.1.","Maisto produktas turi atitikti Lietuvos Respublikos sveikatos apsaugos ministro įsakymo \"Dėl pacientų maitinimo organizavimo asmens sveikatos priežiūros įstaigose tvarkos aprašo\" 2019-08-20 Nr. V-1000 reikalavimus ir aktualias redakcijas"]
["1.11.2.","5-6% riebumo"]
["1.11.3.","0,9-1 l polietileno talpose"]
["1.11.4.","pagamintas iš aukščiausios rūšies pieno"]
["1.11.5.","balto ar gelsvo atspalvio, be specifinio pašarų ar kitų medžiagų skonio ar kvapo"]
["1.11.6.","be priedų"]
["1.11.7.","Produktai turi būti ženklinti nurodant: pavadinimą, kiekį, gamintoją, adresą, telefono numerį, standartą, pagaminimo datą, tinkamumą vartoti iki (nurodant datą), 100g maistinę ir energetinę vertę, laikymo sąlygas"]
["1.12.","Varškės sūris 22%",8000,"kg",null,{"$f":"IF(ISBLANK(E121),\"\", PRODUCT(C121,E121))","v":""}]
["1.12.1.","Maisto produktas turi atitikti Lietuvos Respublikos sveikatos apsaugos ministro įsakymo \"Dėl pacientų maitinimo organizavimo asmens sveikatos priežiūros įstaigose tvarkos aprašo\" 2019-08-20 Nr. V-1000 reikalavimus ir aktualias redakcijas"]
["1.12.2.","22% riebumo"]
["1.12.3.","pjaustant netrupantis"]
["1.12.4.","pagamintas iš aukščiausios rūšies pieno"]
["1.12.5.","fasuotas vakuuminėje pakuotėje po 300-600 g"]
["1.12.6.","nerūgštus"]
["1.12.7.","Produktai turi būti ženklinti nurodant: pavadinimą, kiekį, gamintoją, adresą, telefono numerį, standartą, pagaminimo datą, tinkamumą vartoti iki (nurodant datą), 100g maistinę ir energetinę vertę, laikymo sąlygas"]
[null,null,null,null,"Suma be PVM",{"$f":"IF((COUNT(C30:C128)<>COUNT(F30:F128)),\"\", SUM(F30:F128))","v":""},{"$f":"IF((COUNT(C30:C128)<>COUNT(F30:F128)),\"Neužpildytos visų objektų kainos\", \"\")","v":"Neužpildytos visų objektų kainos"}]
[null,null,null,null,"PVM suma"]
[null,null,null,null,"Suma su PVM",{"$f":"IF(ISBLANK(F130), \"\", SUM(F129:F130))","v":""}]
[]
["2.","Mėsa (kiauliena)"]
["2.1.","Kiaulienos kumpis",20000,"kg",null,{"$f":"IF(ISBLANK(E134),\"\", PRODUCT(C134,E134))","v":""}]
["2.1.1.","Maisto produktas turi atitikti Lietuvos Respublikos sveikatos apsaugos ministro įsakymo \"Dėl pacientų maitinimo organizavimo asmens sveikatos priežiūros įstaigose tvarkos aprašo\" 2019-08-20 Nr. V-1000 reikalavimus ir aktualias redakcijas"]
["2.1.2.","Atvesinta iki 0-4 laipsnių"]
["2.1.3.","I-II kategorijos"]
["2.1.4.","be sumušimų, kraujosruvų"]
["2.1.5.","specifinio nepašvinkusios žalios kiaulienos kvapo"]
["2.1.6.","mėsa neapdžiuvusi"]
["2.1.7.","tiekiama gražinamuose konteineriuose"]
["2.1.8.","Produktai turi būti ženklinti nurodant: pavadinimą, kiekį, gamintoją, adresą, telefono numerį, standartą, pagaminimo datą, tinkamumą vartoti iki (nurodant datą), 100g maistinę ir energetinę vertę, laikymo sąlygas"]
["2.1.9.","vakuuminėje pakuotėje"]
["2.1.10.","pilnai išgyslintas, iškaulintas, nusausintas"]
["2.1.11.","be odos, kaulų"]
["2.2.","Šoninė be kaulo",10000,"kg",null,{"$f":"IF(ISBLANK(E146),\"\", PRODUCT(C146,E146))","v":""}]
["2.2.1.","Maisto produktas turi atitikti Lietuvos Respublikos sveikatos apsaugos ministro įsakymo \"Dėl pacientų maitinimo organizavimo asmens sveikatos priežiūros įstaigose tvarkos aprašo\" 2019-08-20 Nr. V-1000 reikalavimus ir aktualias redakcijas"]
["2.2.2.","Atvesinta iki 0-4 laipsnių"]
["2.2.3.","I-II kategorijos"]
["2.2.4.","be sumušimų, kraujosruvų"]
["2.2.5.","lašinys nepageltęs, be oksidacijos požymių"]
["2.2.6.","specifinio nepašvinkusios žalios kiaulienos kvapo"]
["2.2.7.","mėsa neapdžiuvusi"]
["2.2.8.","turi būti įskaitomas aiškus kategorijos žymuo"]
["2.2.9.","tiekiama gražinamuose konteineriuose"]
["2.2.10.","Produktai turi būti ženklinti nurodant: pavadinimą, kiekį, gamintoją, adresą, telefono numerį, standartą, pagaminimo datą, tinkamumą vartoti iki (nurodant datą), 100g maistinę ir energetinę vertę, laikymo sąlygas"]
["2.2.11.","lašinio ne daugiau kaip 50 %"]
["2.3.","Kotletinė",15000,"kg",null,{"$f":"IF(ISBLANK(E158),\"\", PRODUCT(C158,E158))","v":""}]
["2.3.1.","Maisto produktas turi atitikti Lietuvos Respublikos sveikatos apsaugos ministro įsakymo \"Dėl pacientų maitinimo organizavimo asmens sveikatos priežiūros įstaigose tvarkos aprašo\" 2019-08-20 Nr. V-1000 reikalavimus ir aktualias redakcijas"]
["2.3.2.","Atvesinta iki 0-4 laipsnių"]
["2.3.3.","I-II kategorijos"]
["2.3.4.","be sumušimų, kraujosruvų"]
["2.3.5.","lašinys nepageltęs, be oksidacijos požymių"]
["2.3.6.","specifinio nepašvinkusios žalios kiaulienos kvapo"]
["2.3.7.","mėsa neapdžiuvusi"]
["2.3.8.","tiekiama gražinamuose konteineriuose"]
["2.3.9.","Produktai turi būti ženklinti nurodant: pavadinimą, kiekį, gamintoją, adresą, telefono numerį, standartą, pagaminimo datą, tinkamumą vartoti iki (nurodant datą), 100g maistinę ir energetinę vertę, laikymo sąlygas"]
["2.3.10.","neriebi"]
[null,null,null,null,"Suma be PVM",{"$f":"IF((COUNT(C134:C168)<>COUNT(F134:F168)),\"\", SUM(F134:F168))","v":""},{"$f":"IF((COUNT(C134:C168)<>COUNT(F134:F168)),\"Neužpildytos visų objektų kainos\", \"\")","v":"Neužpildytos visų objektų kainos"}]
[null,null,null,null,"PVM suma"]
[null,null,null,null,"Suma su PVM",{"$f":"IF(ISBLANK(F170), \"\", SUM(F169:F170))","v":""}]
[]
["3.","Mėsa (jautiena)"]
["3.1.","Jautienos kumpis",15000,"kg",5.14,{"$f":"IF(ISBLANK(E174),\"\", PRODUCT(C174,E174))","v":77100},"Jautienos kumpis"]
["3.1.1.","pilnai išgyslintas, iškaulintas, nusausintas",null,null,null,null,null,"išgyslintas, iškailintas, nusausintas"]
["3.1.2.","atvėsintas iki 0-4 laipsnių",null,null,null,null,null,"atvėsintas (0..+6 C)"]
["3.1.3.","žemos riebumo klasės, aukštos raumeningumo klasės",null,null,null,null,null,"žemos riebumo ir aukštos raumeningumo klasės"]
["3.1.4.","nešaldytas",null,null,null,null,null,"nešaldytas"]
["3.1.5.","supakuotas vakuuminėse pakuotėse",null,null,null,null,null,"vakuuminė pakuotė"]
["3.1.6.","Maisto produktas turi atitikti Lietuvos Respublikos sveikatos apsaugos ministro įsakymo \"Dėl pacientų maitinimo organizavimo asmens sveikatos priežiūros įstaigose tvarkos aprašo\" 2019-08-20 Nr. V-1000 reikalavimus ir aktualias redakcijas",null,null,null,null,null,"atitinka"]
["3.1.7.","Produktai turi būti ženklinti nurodant: pavadinimą, kiekį, gamintoją, adresą, telefono numerį, standartą, pagaminimo datą, tinkamumą vartoti iki (nurodant datą), 100g maistinę ir energetinę vertę, laikymo sąlygas",null,null,null,null,null,"Produkto ženklinimas atitinka Lietuvos respublikos norminių teisės aktų reikalavimus"]
[null,null,null,null,"Suma be PVM",{"$f":"IF((COUNT(C174:C181)<>COUNT(F174:F181)),\"\", SUM(F174:F181))","v":77100},{"$f":"IF((COUNT(C174:C181)<>COUNT(F174:F181)),\"Neužpildytos visų objektų kainos\", \"\")","v":""}]
[null,null,null,null,"PVM suma",{"$f":"$F$182*0.21","v":16191}]
[null,null,null,null,"Suma su PVM",{"$f":"IF(ISBLANK(F183), \"\", SUM(F182:F183))","v":93291}]
[]
["4.","Mėsa (paukštiena)"]
["4.1.","Viščiukų broilerių ketvirčiai",25000,"kg",1.38,{"$f":"IF(ISBLANK(E187),\"\", PRODUCT(C187,E187))","v":34500},"Viščiukų broilerių ketvirčiai (šaldyti)"]
["4.1.1.","kategorija I",null,null,null,null,null,"I  kategorija"]
["4.1.2.","šaldytos",null,null,null,null,null,"šaldyti"]
["4.1.3.","be padaigų",null,null,null,null,null,"be padaigų"]
["4.1.4.","oda švari be kraujo, įplėšimų, kraujosruvų",null,null,null,null,null,"oda švari be kraujo, įplėšimų, kraujosrūvų"]
["4.1.5.","spalva gelsva su rausvu atspalviu ir be jo",null,null,null,null,null,"spalva geslva su rausvu atspalviu"]
["4.1.6.","raumenys gerai išsivystę",null,null,null,null,null,"gerai išsivystę raumenys"]
["4.1.7.","vakuuminėse pakuotėse",null,null,null,null,null,"vakuuminėje pakuotėje"]
["4.1.8.","ketvirčio svoris 500-600 g",null,null,null,null,null,"kevirčio svoris nuo 500g iki 600g"]
["4.1.9.","Maisto produktas turi atitikti Lietuvos Respublikos sveikatos apsaugos ministro įsakymo \"Dėl pacientų maitinimo organizavimo asmens sveikatos priežiūros įstaigose tvarkos aprašo\" 2019-08-20 Nr. V-1000 reikalavimus ir aktualias redakcijas",null,null,null,null,null,"atitinka"]
["4.1.10.","Produktai turi būti ženklinti nurodant: pavadinimą, kiekį, gamintoją, adresą, telefono numerį, standartą, pagaminimo datą, tinkamumą vartoti iki (nurodant datą), 100g maistinę ir energetinę vertę, laikymo sąlygas",null,null,null,null,null,"Produkto ženklinimas atitinka Lietuvos respublikos norminių teisės aktų reikalavimus"]
[null,null,null,null,"Suma be PVM",{"$f":"IF((COUNT(C187:C197)<>COUNT(F187:F197)),\"\", SUM(F187:F197))","v":34500},{"$f":"IF((COUNT(C187:C197)<>COUNT(F187:F197)),\"Neužpildytos visų objektų kainos\", \"\")","v":""}]
[null,null,null,null,"PVM suma",{"$f":"$F$198*0.21","v":7245}]
[null,null,null,null,"Suma su PVM",{"$f":"IF(ISBLANK(F199), \"\", SUM(F198:F199))","v":41745}]
[]
["5.","Mėsos gaminiai (kiaulienos)"]
["5.1.","Natūralus virtas kiaulienos vyniotinis",4000,"kg",4.88,{"$f":"IF(ISBLANK(E203),\"\", PRODUCT(C203,E203))","v":19520},"Virtas \"Kleboniškas\" kiaulienos vyniotinis"]
["5.1.1.","Maisto produktas turi atitikti Lietuvos Respublikos sveikatos apsaugos ministro įsakymo \"Dėl pacientų maitinimo organizavimo asmens sveikatos priežiūros įstaigose tvarkos aprašo\" 2019-08-20 Nr. V-1000 reikalavimus ir aktualias redakcijas",null,null,null,null,null,"Atitinka"]
["5.1.2.","aukščiausios rūšies",null,null,null,null,null,"aukščiausia rūšis"]
["5.1.3.","paviršius švarus, sausas",null,null,null,null,null,"paviršius švarus, sausas"]
["5.1.4.","be kaulų, kremzlių, odos",null,null,null,null,null,"be kaulų, kremzlių, odos"]
["5.1.5.","suvyniotas į polietileno plėvelę",null,null,null,null,null,"vakuuminis įpakavavimas"]
["5.1.6.","konsistencija standi, skonis malonus, be pašalio kvapo ir skonio",null,null,null,null,null,"konsistencija standi, skonis malonus, be pašalinio kvapo ir skonio"]
["5.1.7.","pailgos formos, gaminio masė 1-2 kg, 6-8 cm diametro",null,null,null,null,null,"pailgos formos, masė ~1 kg"]
["5.1.8.","pristatomas gražinamose dėžėse pritaikytose maisto gabenimui",null,null,null,null,null,"Pristatoma maisto gabenimui skirtose dėžėse"]
["5.1.9.","Produktai turi būti ženklinti nurodant: pavadinimą, kiekį, gamintoją, adresą, telefono numerį, standartą, pagaminimo datą, tinkamumą vartoti iki (nurodant datą), 100g maistinę ir energetinę vertę, laikymo sąlygas",null,null,null,null,null,"Produkto ženklinimas atitinka Lietuvos respublikos norminių teisės aktų reikalavimus"]
["5.2.","Virta dešra",4000,"kg",2.2400000000000002,{"$f":"IF(ISBLANK(E213),\"\", PRODUCT(C213,E213))","v":8960},"Virta Samsono pieniška dešra"]
["5.2.1.","Maisto produktas turi atitikti Lietuvos Respublikos sveikatos apsaugos ministro įsakymo \"Dėl pacientų maitinimo organizavimo asmens sveikatos priežiūros įstaigose tvarkos aprašo\" 2019-08-20 Nr. V-1000 reikalavimus ir aktualias redakcijas",null,null,null,null,null,"Atitinka"]
["5.2.2.","aukščiausios rūšies",null,null,null,null,null,"aukščiausia rūšis"]
["5.2.3.","paviršius švarus, sausas",null,null,null,null,null,"paviršius švarus, sausas"]
["5.2.4.","be kaulų, kremzlių, odos",null,null,null,null,null,"be kaulų, kremzlių, odos"]
["5.2.5.","be lašinukų gabaliukų",null,null,null,null,null,"be lašinukų"]
["5.2.6.","konsistencija standi, skonis malonus, be pašalio kvapo ir skonio",null,null,null,null,null,"konsistencija standi, skonis malonus, be pašalinio kvapo ir skonio"]
["5.2.7.","pailgos formos, gaminio masė 1-2 kg, 5-6 cm diametro",null,null,null,null,null,"pailgos formos, masė ~1 kg, 6 cm diametro"]
["5.2.8.","pristatomas gražinamose dėžėse pritaikytose maisto gabenimui",null,null,null,null,null,"Pristatoma maisto gabenimui skirtose dėžėse"]
["5.2.9.","Produktai turi būti ženklinti nurodant: pavadinimą, kiekį, gamintoją, adresą, telefono numerį, standartą, pagaminimo datą, tinkamumą vartoti iki (nurodant datą), 100g maistinę ir energetinę vertę, laikymo sąlygas",null,null,null,null,null,"Produkto ženklinimas atitinka Lietuvos respublikos norminių teisės aktų reikalavimus"]
["5.3.","Sardelės",12000,"kg",3.18,{"$f":"IF(ISBLANK(E223),\"\", PRODUCT(C223,E223))","v":38160},"Virtos Samsono sardelės"]
["5.3.1.","Maisto produktas turi atitikti Lietuvos Respublikos sveikatos apsaugos ministro įsakymo \"Dėl pacientų maitinimo organizavimo asmens sveikatos priežiūros įstaigose tvarkos aprašo\" 2019-08-20 Nr. V-1000 reikalavimus ir aktualias redakcijas",null,null,null,null,null,"Atitinka"]
["5.3.2.","aukščiausios rūšies",null,null,null,null,null,"aukščiausia rūšis"]
["5.3.3.","pagamintos iš kiaulienos, gali būti jautienos iki 20%",null,null,null,null,null,"pagamintos iš kiaulienos, sudėtyje yra ir jautienos (<20%)"]
["5.3.4.","be mėsos pakaitalų, užpildų",null,null,null,null,null,"be mėsos pakaitalų ir užpildų"]
["5.3.5.","sardelės vieneto svoris 80-100 g",null,null,null,null,null,"vienos sardelės svoris ~ 58g"]
["5.3.6.","9-10 cm ilgio",null,null,null,null,null,"Ilgis 90 ± 10 mm, diametras 32 ± 2 mm."]
["5.3.7.","pristatomas gražinamose dėžėse pritaikytose maisto gabenimui",null,null,null,null,null,"Pristatoma maisto gabenimui skirtose dėžėse"]
["5.3.8.","Produktai turi būti ženklinti nurodant: pavadinimą, kiekį, gamintoją, adresą, telefono numerį, standartą, pagaminimo datą, tinkamumą vartoti iki (nurodant datą), 100g maistinę ir energetinę vertę, laikymo sąlygas",null,null,null,null,null,"Produkto ženklinimas atitinka Lietuvos respublikos norminių teisės aktų reikalavimus"]
[null,null,null,null,"Suma be PVM",{"$f":"IF((COUNT(C203:C231)<>COUNT(F203:F231)),\"\", SUM(F203:F231))","v":66640},{"$f":"IF((COUNT(C203:C231)<>COUNT(F203:F231)),\"Neužpildytos visų objektų kainos\", \"\")","v":""}]
[null,null,null,null,"PVM suma",{"$f":"66640*0.21","v":13994.4}]
[null,null,null,null,"Suma su PVM",{"$f":"IF(ISBLANK(F233), \"\", SUM(F232:F233))","v":80634.399999999994}]
[]
["6.","Mėsos gaminiai (paukštiena)"]
["6.1.","Natūralus virtas paukštienos vyniotinis",4000,"kg",3.16,{"$f":"IF(ISBLANK(E237),\"\", PRODUCT(C237,E237))","v":12640},"Virtas vištienos vyniotinis"]
["6.1.1.","Maisto produktas turi atitikti Lietuvos Respublikos sveikatos apsaugos ministro įsakymo \"Dėl pacientų maitinimo organizavimo asmens sveikatos priežiūros įstaigose tvarkos aprašo\" 2019-08-20 Nr. V-1000 reikalavimus ir aktualias redakcijas",null,null,null,null,null,"atitinka"]
["6.1.2.","aukščiausios rūšies",null,null,null,null,null,"aukščiausios rūšies"]
["6.1.3.","paviršius švarus, sausas",null,null,null,null,null,"paviršius švarus, sausas"]
["6.1.4.","be kaulų, kremzlių, odos",null,null,null,null,null,"be kaulų, kremzlių, odos"]
["6.1.5.","suvyniotas į polietileno plėvėlę",null,null,null,null,null,"vakuuminėje pakuotėje"]
["6.1.6.","konsistencija standi, skonis malonus, be pašalio kvapo ir skonio",null,null,null,null,null,"konsistencija standi, skonis malonus, be pašalinio kvapo ir skonio"]
["6.1.7.","pailgos formos, gaminio masė 1-2 kg, 6-8 cm diametro",null,null,null,null,null,"pailgos formos diametras 64 ± 2 mm"]
["6.1.8.","pristatomas gražinamose dėžėse pritaikytose maisto gabenimui",null,null,null,null,null,"Pristatoma maisto gabenimui skirtose dėžėse"]
["6.1.9.","Produktai turi būti ženklinti nurodant: pavadinimą, kiekį, gamintoją, adresą, telefono numerį, standartą, pagaminimo datą, tinkamumą vartoti iki (nurodant datą), 100g maistinę ir energetinę vertę, laikymo sąlygas",null,null,null,null,null,"Produkto ženklinimas atitinka Lietuvos respublikos norminių teisės aktų reikalavimus"]
[null,null,null,null,"Suma be PVM",{"$f":"IF((COUNT(C237:C246)<>COUNT(F237:F246)),\"\", SUM(F237:F246))","v":12640},{"$f":"IF((COUNT(C237:C246)<>COUNT(F237:F246)),\"Neužpildytos visų objektų kainos\", \"\")","v":""}]
[null,null,null,null,"PVM suma",{"$f":"$F$247*0.21","v":2654.4}]
[null,null,null,null,"Suma su PVM",{"$f":"IF(ISBLANK(F248), \"\", SUM(F247:F248))","v":15294.4}]
[]
["7.","Žuvis ir jos gaminiai"]
["7.1.","Šaldyta jūros lydekos file",10000,"kg",2.37,{"$f":"IF(ISBLANK(E252),\"\", PRODUCT(C252,E252))","v":23700},"Jūros lydekos filė"]
["7.1.1.","Sauso šaldymo",null,null,null,null,null,"Glazūruota iki 12%"]
["7.1.2.","be matomų dėmių, oksidacijos požymių",null,null,null,null,null,"be dėmių "]
["7.1.3.","standžios konsistencijos",null,null,null,null,null,"standžios konsistencijos"]
["7.1.4.","15-20 cm ilgio",null,null,null,null,null,"15-20cm"]
["7.1.5.","be kaulų",null,null,null,null,null,"be kaulų "]
["7.1.6.","tiekiama sušaldyta pakuotėse iki 10 kg",null,null,null,null,null,"Fasuota apie 7kg"]
["7.1.7.","Maisto produktas turi atitikti Lietuvos Respublikos sveikatos apsaugos ministro įsakymo \"Dėl pacientų maitinimo organizavimo asmens sveikatos priežiūros įstaigose tvarkos aprašo\" 2019-08-20 Nr. V-1000 reikalavimus ir aktualias redakcijas",null,null,null,null,null,"atitinka"]
["7.2.","Silkės file",5000,"kg",1.85,{"$f":"IF(ISBLANK(E260),\"\", PRODUCT(C260,E260))","v":9250},"Silkės filė "]
["7.2.1.","Maisto produktas turi atitikti Lietuvos Respublikos sveikatos apsaugos ministro įsakymo \"Dėl pacientų maitinimo organizavimo asmens sveikatos priežiūros įstaigose tvarkos aprašo\" 2019-08-20 Nr. V-1000 reikalavimus ir aktualias redakcijas",null,null,null,null,null,"atitinka"]
["7.2.2.","su oda",null,null,null,null,null,"Su oda "]
["7.2.3.","silpno sūdymo ",null,null,null,null,null,"Silpnai sūdyta "]
["7.2.4.","standžios konsistencijos",null,null,null,null,null,"Standžios konsistencijos "]
["7.2.5.","nepageltusi",null,null,null,null,null,"nepageltusi "]
["7.2.6.","be oksiduotų riebalų kvapo",null,null,null,null,null,"be oksiduotų riebalų kvapo"]
["7.2.7.","tiekiama kibirėliuose su dangčiais po 3-5 kg",null,null,null,null,null,"fasuota po 4,5kg kibirėliai"]
[null,null,null,null,"Suma be PVM",{"$f":"IF((COUNT(C252:C267)<>COUNT(F252:F267)),\"\", SUM(F252:F267))","v":32950},{"$f":"IF((COUNT(C252:C267)<>COUNT(F252:F267)),\"Neužpildytos visų objektų kainos\", \"\")","v":""}]
[null,null,null,null,"PVM suma",{"$f":"$F$268*0.21","v":6919.5}]
[null,null,null,null,"Suma su PVM",{"$f":"IF(ISBLANK(F269), \"\", SUM(F268:F269))","v":39869.5}]
[]
["8.","Šviežios daržovės 1"]
["8.1.","Bulvės",150000,"kg",0.28000000000000003,{"$f":"IF(ISBLANK(E273),\"\", PRODUCT(C273,E273))","v":42000.000000000007},"Bulvės"]
["8.1.1.","Maisto produktas turi atitikti Lietuvos Respublikos sveikatos apsaugos ministro įsakymo \"Dėl pacientų maitinimo organizavimo asmens sveikatos priežiūros įstaigose tvarkos aprašo\" 2019-08-20 Nr. V-1000 reikalavimus ir aktualias redakcijas",null,null,null,null,null,"atitinka"]
["8.1.2.","Gumbai sausi, nepažaliavę, nesuvytę, be daigų ir įtrūkimų",null,null,null,null,null,"gumbai sausi, nepažaliavę, nesuvytę, be daigų ir įtrūkimu"]
["8.1.3.","Pjūvio spalva geltona arba balta",null,null,null,null,null,"pjūvio spalva geltona arba balta"]
["8.1.4.","be pažeidimų, nuskutus be pilkų dėmių, nesušalę",null,null,null,null,null,"be pažeidimų, nuskutus be pilkų dėmių, nesušalę"]
["8.1.5.","bulvių diametras: jaunų bulvių 4-6 cm, senų bulvių 7-9 cm",null,null,null,null,null,"diamentras: jaunų 4-6 cm, sunų 7-9 cm"]
["8.1.6.","1 bulvių maišo svoris ne daugiau 20 kg",null,null,null,null,null,"maišuose po 20kg"]
["8.2.","Morkos",40000,"kg",0.31,{"$f":"IF(ISBLANK(E280),\"\", PRODUCT(C280,E280))","v":12400},"Morkos"]
["8.2.1.","Maisto produktas turi atitikti Lietuvos Respublikos sveikatos apsaugos ministro įsakymo \"Dėl pacientų maitinimo organizavimo asmens sveikatos priežiūros įstaigose tvarkos aprašo\" 2019-08-20 Nr. V-1000 reikalavimus ir aktualias redakcijas",null,null,null,null,null,"atitinka"]
["8.2.2.","šakniavaisiai švarūs, sveiki, ne šakoti, nesuvytę, be pašalinio skonio ar kvapo, pelėsio, puvinio",null,null,null,null,null,"šakniavaisiai švarūs, sveiki, nešakoti, nesuvytę, be pašalinio skonio ar kvapo, pelėsio ar puvinio"]
["8.2.3.","nupjautais lapais",null,null,null,null,null,"be lapų"]
["8.2.4.","15-18 cm ilgio",null,null,null,null,null,"ilgis: 15-18 cm"]
["8.3.","Svogūnai (rudieji)",13000,"kg",0.4,{"$f":"IF(ISBLANK(E285),\"\", PRODUCT(C285,E285))","v":5200},"Svogūnai (rudieji)"]
["8.3.1.","Maisto produktas turi atitikti Lietuvos Respublikos sveikatos apsaugos ministro įsakymo \"Dėl pacientų maitinimo organizavimo asmens sveikatos priežiūros įstaigose tvarkos aprašo\" 2019-08-20 Nr. V-1000 reikalavimus ir aktualias redakcijas",null,null,null,null,null,"atitinka"]
["8.3.2.","be pelėsio, puvinio židinių, žemių, pažeidimų",null,null,null,null,null,"be pelėsio, puvinio židinio, pažeidimų. Be žemių"]
["8.3.3.","paprastieji valgomieji svogūnai (ne mėlyni ar saldieji)",null,null,null,null,null,"paprastieji valgomieji svogūnai"]
["8.3.4.","svogūno diametras ne mažiau 6 cm",null,null,null,null,null,"diametras ne mažiau 6 cm"]
["8.4.","Česnakai",200,"kg",2.2000000000000002,{"$f":"IF(ISBLANK(E290),\"\", PRODUCT(C290,E290))","v":440.00000000000006},"Česnakai"]
["8.4.1.","Maisto produktas turi atitikti Lietuvos Respublikos sveikatos apsaugos ministro įsakymo \"Dėl pacientų maitinimo organizavimo asmens sveikatos priežiūros įstaigose tvarkos aprašo\" 2019-08-20 Nr. V-1000 reikalavimus ir aktualias redakcijas",null,null,null,null,null,"atitinka"]
["8.4.2.","Nepažeisti kenkėjų ar ligų, be pelėsio, puvinio, be pašalio skonio ar kvapo, švarūs, sausi",null,null,null,null,null,"be pelėsio, puvinio židinio, švarūs, sausi, nepažeisti kenkėjų. Be pašalinio skonio ir kvapo."]
["8.4.3.","be žemių",null,null,null,null,null,"be žemių"]
["8.4.4.","siametras daugiau nei 4 cm",null,null,null,null,null,"diametras ne mažiau 4 cm"]
["8.5.","Burokėliai",20000,"kg",0.21,{"$f":"IF(ISBLANK(E295),\"\", PRODUCT(C295,E295))","v":4200},"Burokėliai"]
["8.5.1.","Maisto produktas turi atitikti Lietuvos Respublikos sveikatos apsaugos ministro įsakymo \"Dėl pacientų maitinimo organizavimo asmens sveikatos priežiūros įstaigose tvarkos aprašo\" 2019-08-20 Nr. V-1000 reikalavimus ir aktualias redakcijas",null,null,null,null,null,"atitinka"]
["8.5.2.","Nepažeisti kenkėjų ar ligų, be pelėsio, puvinio, be pašalio skonio ar kvapo, švarūs, sausi",null,null,null,null,null,"be pelėsio, puvinio židinio, švarūs, sausi, nepažeisti kenkėjų. Be pašalinio skonio ir kvapo."]
["8.5.3.","be lapkočių",null,null,null,null,null,"be lapkočių"]
["8.5.4.","diametras ne mažiau 6 cm",null,null,null,null,null,"diametras ne mažiau 6 cm"]
["8.5.5.","pjūvyje raudoni",null,null,null,null,null,"pjūvyje raudoni"]
["8.5.6.","Jauni burokėliai gali būti tiekiami su nepažeistais, neapdžiūvusiais lapkočiais",null,null,null,null,null,"Jauni burokėliai gali būti tiekiami su nepažeistais, neapdžiūvusiais lapkočiais"]
[null,null,null,null,"Suma be PVM",{"$f":"IF((COUNT(C273:C301)<>COUNT(F273:F301)),\"\", SUM(F273:F301))","v":64240.000000000007},{"$f":"IF((COUNT(C273:C301)<>COUNT(F273:F301)),\"Neužpildytos visų objektų kainos\", \"\")","v":""}]
[null,null,null,null,"PVM suma",{"$f":"$F$302*0.21","v":13490.400000000001}]
[null,null,null,null,"Suma su PVM",{"$f":"IF(ISBLANK(F303), \"\", SUM(F302:F303))","v":77730.400000000009}]
[]
["9.","Šviežios sezoninės daržovės (perkamos birželio, liepos, rugpjūčio, rugsėjo mėnesiais)"]
["9.1.","Svogūnų laiškai",500,"kg",3.1,{"$f":"IF(ISBLANK(E307),\"\", PRODUCT(C307,E307))","v":1550},"Svogūnų laiškai"]
["9.1.1.","Maisto produktas turi atitikti Lietuvos Respublikos sveikatos apsaugos ministro įsakymo \"Dėl pacientų maitinimo organizavimo asmens sveikatos priežiūros įstaigose tvarkos aprašo\" 2019-08-20 Nr. V-1000 reikalavimus ir aktualias redakcijas",null,null,null,null,null,"atitinka"]
["9.1.2.","Sveiki, be žemių, be pažeidimo požymių, nepageltę",null,null,null,null,null,"sveiki, be žemių, nepageltę"]
["9.1.3.","supakuoti į celofano tūteles",null,null,null,null,null,"celofano tūtelėse"]
["9.2.","Krapai",400,"kg",3.3,{"$f":"IF(ISBLANK(E311),\"\", PRODUCT(C311,E311))","v":1320},"Krapai"]
["9.2.1.","Maisto produktas turi atitikti Lietuvos Respublikos sveikatos apsaugos ministro įsakymo \"Dėl pacientų maitinimo organizavimo asmens sveikatos priežiūros įstaigose tvarkos aprašo\" 2019-08-20 Nr. V-1000 reikalavimus ir aktualias redakcijas",null,null,null,null,null,"atitinka"]
["9.2.2.","Sveiki, be žemių, be pažeidimo požymių, mepageltę",null,null,null,null,null,"sveiki, be žemių, nepageltę"]
["9.3.","Ridikėliai",500,"kg",1.35,{"$f":"IF(ISBLANK(E314),\"\", PRODUCT(C314,E314))","v":675},"Ridikėliai"]
["9.3.1.","Maisto produktas turi atitikti Lietuvos Respublikos sveikatos apsaugos ministro įsakymo \"Dėl pacientų maitinimo organizavimo asmens sveikatos priežiūros įstaigose tvarkos aprašo\" 2019-08-20 Nr. V-1000 reikalavimus ir aktualias redakcijas",null,null,null,null,null,"atitinka"]
["9.3.2.","nepažeisti kenkėjų ir ligų, švarūs, sausi, be pašalinio skonio, kvapo, pe puvinio ir pelėsio, be žemių",null,null,null,null,null,"nepažeisti kenkėjų ir ligų, švarūs, sausi, be pašalinio skonio, kvapo, be puvinio ir pelėsio, be žemių"]
["9.3.3.","nepažeisti kenkėjų ir ligų, be mechaninių pažeidimų"]
["9.3.4.","neperaugę, nesustagarėja",null,null,null,null,null,"neperaugę ir nesustagarėję"]
[null,null,null,null,"Suma be PVM",{"$f":"IF((COUNT(C307:C318)<>COUNT(F307:F318)),\"\", SUM(F307:F318))","v":3545},{"$f":"IF((COUNT(C307:C318)<>COUNT(F307:F318)),\"Neužpildytos visų objektų kainos\", \"\")","v":""}]
[null,null,null,null,"PVM suma",{"$f":"F319*0.21","v":744.44999999999993}]
[null,null,null,null,"Suma su PVM",{"$f":"IF(ISBLANK(F320), \"\", SUM(F319:F320))","v":4289.45}]
[]
["10.","Šaldytos daržovės"]
["10.1.","Šaldytų daržovių asorti",10000,"kg",1.04,{"$f":"IF(ISBLANK(E324),\"\", PRODUCT(C324,E324))","v":10400},"Šaldytas daržovių mišinys"]
["10.1.1.","Maisto produktas turi atitikti Lietuvos Respublikos sveikatos apsaugos ministro įsakymo \"Dėl pacientų maitinimo organizavimo asmens sveikatos priežiūros įstaigose tvarkos aprašo\" 2019-08-20 Nr. V-1000 reikalavimus ir aktualias redakcijas",null,null,null,null,null,"Atitinka"]
["10.1.2.","Šaldytos",null,null,null,null,null,"Šaldytos"]
["10.1.3.","fasuotos po 2-25 kg",null,null,null,null,null,"fasuotos po 2,5kg"]
["10.1.4.","daržovės kokybiškos",null,null,null,null,null,"kokybiškos"]
["10.1.5.","sudėtyje turi būti: brokolis, žiedinis kopūstas, šparaginės pupelės, morkos, žirneliai lygiomis dalimis",null,null,null,null,null,"žiedinis kopūstas, šparaginės pupelės, morkos, žirneliai lygiomis dalimis, sudėtyje nėra brokolių"]
["10.1.6.","Produktai turi būti ženklinti nurodant: pavadinimą, kiekį, gamintoją, adresą, telefono numerį, standartą, pagaminimo datą, tinkamumą vartoti iki (nurodant datą), 100g maistinę ir energetinę vertę, laikymo sąlygas",null,null,null,null,null,"Ženklinti"]
[null,null,null,null,"Suma be PVM",{"$f":"IF((COUNT(C324:C330)<>COUNT(F324:F330)),\"\", SUM(F324:F330))","v":10400},{"$f":"IF((COUNT(C324:C330)<>COUNT(F324:F330)),\"Neužpildytos visų objektų kainos\", \"\")","v":""}]
[null,null,null,null,"PVM suma",{"$f":"$F$331*0.21","v":2184}]
[null,null,null,null,"Suma su PVM",{"$f":"IF(ISBLANK(F332), \"\", SUM(F331:F332))","v":12584}]
[]
["11.","Perdirbti vaisiai ir daržovės"]
["11.1.","Juodųjų serbentų uogienė",2000,"kg",1.61,{"$f":"IF(ISBLANK(E336),\"\", PRODUCT(C336,E336))","v":3220},"Juodųjų serbentų uogienė"]
["11.1.1.","Maisto produktas turi atitikti Lietuvos Respublikos sveikatos apsaugos ministro įsakymo \"Dėl pacientų maitinimo organizavimo asmens sveikatos priežiūros įstaigose tvarkos aprašo\" 2019-08-20 Nr. V-1000 reikalavimus ir aktualias redakcijas",null,null,null,null,null,"Atitinka"]
["11.1.2.","netvirtų drebučių masė su traiškytomis uogomis",null,null,null,null,null,"su traiškytomis uogomis "]
["11.1.3.","be pašalinių priemaišų, nesusicukravusi",null,null,null,null,null,"be pašalinių priemaišų"]
["11.1.4.","be pelėsio, pašalinio skonio ir kvapo",null,null,null,null,null,"be pelėsio, pašalinio skonio ir kvapo"]
["11.1.5.","tiekiama 0,5-1 l talpose",null,null,null,null,null,"fasuota 1l kibirėliuose"]
["11.1.6.","Produktai turi būti ženklinti nurodant: pavadinimą, kiekį, gamintoją, adresą, telefono numerį, standartą, pagaminimo datą, tinkamumą vartoti iki (nurodant datą), 100g maistinę ir energetinę vertę, laikymo sąlygas",null,null,null,null,null,"ženklinti"]
["11.2.","Konservuoti žali žirneliai",5000,"kg",0.84,{"$f":"IF(ISBLANK(E343),\"\", PRODUCT(C343,E343))","v":4200},"Konservuoti žali žirneliai"]
["11.2.1.","Maisto produktas turi atitikti Lietuvos Respublikos sveikatos apsaugos ministro įsakymo \"Dėl pacientų maitinimo organizavimo asmens sveikatos priežiūros įstaigose tvarkos aprašo\" 2019-08-20 Nr. V-1000 reikalavimus ir aktualias redakcijas",null,null,null,null,null,"Atitinka"]
["11.2.2.","skystis nedrumzlėtas",null,null,null,null,null,"skystis nedrumzlėtas"]
["11.2.3.","malonaus specifinio skonio",null,null,null,null,null,"malonaus specifinio skonio"]
["11.2.4.","žalios spalvos",null,null,null,null,null,"žalios spalvos"]
["11.2.5.","talpose po 0,5-1 kg",null,null,null,null,null,"stiklainiai 690g."]
["11.2.6.","Produktai turi būti ženklinti nurodant: pavadinimą, kiekį, gamintoją, adresą, telefono numerį, standartą, pagaminimo datą, tinkamumą vartoti iki (nurodant datą), 100g maistinę ir energetinę vertę, laikymo sąlygas",null,null,null,null,null,"Ženklinti"]
["11.3.","Marinuoti agurkai",15000,"kg",0.65,{"$f":"IF(ISBLANK(E350),\"\", PRODUCT(C350,E350))","v":9750},"Marinuoti agurkai"]
["11.3.1.","Maisto produktas turi atitikti Lietuvos Respublikos sveikatos apsaugos ministro įsakymo \"Dėl pacientų maitinimo organizavimo asmens sveikatos priežiūros įstaigose tvarkos aprašo\" 2019-08-20 Nr. V-1000 reikalavimus ir aktualias redakcijas",null,null,null,null,null,"Atitinka"]
["11.3.2.","sveiki, nepjaustyti agurkai",null,null,null,null,null,"sveiki, nepjaustyti agurkai"]
["11.3.3.","paruošti su marinatu",null,null,null,null,null,"Paruošti su marinatu"]
["11.3.4.","tiekiami 3-5 l talpose",null,null,null,null,null,"fasuoti stiklainiuose 3l"]
["11.3.5.","nurodyti brutto ir netto svorius",null,null,null,null,null,"3000g/1500g"]
["11.3.6.","Produktai turi būti ženklinti nurodant: pavadinimą, kiekį, gamintoją, adresą, telefono numerį, standartą, pagaminimo datą, tinkamumą vartoti iki (nurodant datą), 100g maistinę ir energetinę vertę, laikymo sąlygas",null,null,null,null,null,"ženklinti"]
["11.4.","Pomidorų padažas",3000,"kg",0.89,{"$f":"IF(ISBLANK(E357),\"\", PRODUCT(C357,E357))","v":2670},"Pomidorų padažas"]
["11.4.1.","Maisto produktas turi atitikti Lietuvos Respublikos sveikatos apsaugos ministro įsakymo \"Dėl pacientų maitinimo organizavimo asmens sveikatos priežiūros įstaigose tvarkos aprašo\" 2019-08-20 Nr. V-1000 reikalavimus ir aktualias redakcijas",null,null,null,null,null,"Atitinka"]
["11.4.2.","raudonos spalvos",null,null,null,null,null,"Raudonos spalvos"]
["11.4.3.","aštroko skonio",null,null,null,null,null,"aštroko skonio"]
["11.4.4.","sudėtyje pomidorų pastos ne mažiau 27%",null,null,null,null,null,"pomidorų pastos 32%"]
["11.4.5.","talpose po 0,5-1 kg",null,null,null,null,null,"talpose 1kg"]
["11.4.6.","Produktai turi būti ženklinti nurodant: pavadinimą, kiekį, gamintoją, adresą, telefono numerį, standartą, pagaminimo datą, tinkamumą vartoti iki (nurodant datą), 100g maistinę ir energetinę vertę, laikymo sąlygas",null,null,null,null,null,"ženklinti"]
["11.5.","Marinuoti burokėliai",2000,"kg",0.74,{"$f":"IF(ISBLANK(E364),\"\", PRODUCT(C364,E364))","v":1480},"Marinuoti burokėliai"]
["11.5.1.","Maisto produktas turi atitikti Lietuvos Respublikos sveikatos apsaugos ministro įsakymo \"Dėl pacientų maitinimo organizavimo asmens sveikatos priežiūros įstaigose tvarkos aprašo\" 2019-08-20 Nr. V-1000 reikalavimus ir aktualias redakcijas",null,null,null,null,null,"Atitinka"]
["11.5.2.","be pašalinio skonio ir kvapo",null,null,null,null,null,"be pašalinio skonio ir kvapo"]
["11.5.3.","saldžiarūgščiai",null,null,null,null,null,"saldžiarūgščiai"]
["11.5.4.","stiklainiukuose po 0,5-1 kg",null,null,null,null,null,"stiklainiuose 500g "]
["11.5.5.","Produktai turi būti ženklinti nurodant: pavadinimą, kiekį, gamintoją, adresą, telefono numerį, standartą, pagaminimo datą, tinkamumą vartoti iki (nurodant datą), 100g maistinę ir energetinę vertę, laikymo sąlygas",null,null,null,null,null,"Ženklinti"]
["11.6.","Rauginti kopūstai",6000,"kg",0.6,{"$f":"IF(ISBLANK(E370),\"\", PRODUCT(C370,E370))","v":3600},"Rauginti kopūstai"]
["11.6.1.","Maisto produktas turi atitikti Lietuvos Respublikos sveikatos apsaugos ministro įsakymo \"Dėl pacientų maitinimo organizavimo asmens sveikatos priežiūros įstaigose tvarkos aprašo\" 2019-08-20 Nr. V-1000 reikalavimus ir aktualias redakcijas",null,null,null,null,null,"atitinka"]
["11.6.2.","šviesūs, švarūs, nesuminkštėje",null,null,null,null,null,"šviesūs, švarūs, nesuminkštėję"]
["11.6.3.","malonaus skonio",null,null,null,null,null,"malonaus skonio"]
["11.6.4.","fasuoti po 0,5-1 kg",null,null,null,null,null,"fasuoti po 1kg"]
["11.6.5.","ant pakuotės nurodyti brutto ir netto svorius",null,null,null,null,null,"nurodyta"]
["11.6.6.","fasavimas hermetiškas",null,null,null,null,null,"fasavimas hermetiškas"]
["11.6.7.","Produktai turi būti ženklinti nurodant: pavadinimą, kiekį, gamintoją, adresą, telefono numerį, standartą, pagaminimo datą, tinkamumą vartoti iki (nurodant datą), 100g maistinę ir energetinę vertę, laikymo sąlygas",null,null,null,null,null,"Ženklinti"]
["11.7.","Rauginti agurkai",1000,"kg",0.95,{"$f":"IF(ISBLANK(E378),\"\", PRODUCT(C378,E378))","v":950},"rauginti agurkai"]
["11.7.1.","Maisto produktas turi atitikti Lietuvos Respublikos sveikatos apsaugos ministro įsakymo \"Dėl pacientų maitinimo organizavimo asmens sveikatos priežiūros įstaigose tvarkos aprašo\" 2019-08-20 Nr. V-1000 reikalavimus ir aktualias redakcijas",null,null,null,null,null,"atitinka"]
["11.7.2."," pelėsio, gleivių",null,null,null,null,null,"be pelėsio, gleivių,  pašalinio skonio ir kvapo"]
["11.7.3.","nesuminkštėję",null,null,null,null,null,"nesuminkštėję"]
["11.7.4.","kibirėliuose po 5-8 kg",null,null,null,null,null,"kibirėliuose po 5-8 kg"]
["11.7.5.","ant pakuotės nurodyti brutto ir netto svorius",null,null,null,null,null,"nurodyta"]
["11.7.6.","Produktai turi būti ženklinti nurodant: pavadinimą, kiekį, gamintoją, adresą, telefono numerį, standartą, pagaminimo datą, tinkamumą vartoti iki (nurodant datą), 100g maistinę ir energetinę vertę, laikymo sąlygas",null,null,null,null,null,"paženklinti"]
[null,null,null,null,"Suma be PVM",{"$f":"IF((COUNT(C336:C384)<>COUNT(F336:F384)),\"\", SUM(F336:F384))","v":25870},{"$f":"IF((COUNT(C336:C384)<>COUNT(F336:F384)),\"Neužpildytos visų objektų kainos\", \"\")","v":""}]
[null,null,null,null,"PVM suma",{"$f":"$F$385*0.21","v":5432.7}]
[null,null,null,null,"Suma su PVM",{"$f":"IF(ISBLANK(F386), \"\", SUM(F385:F386))","v":31302.7}]
[]
["12.","Švieži vaisiai"]
["12.1.","Obuoliai",30000,"kg",0.49,{"$f":"IF(ISBLANK(E390),\"\", PRODUCT(C390,E390))","v":14700},"Obuoliai"]
["12.1.1.","Maisto produktas turi atitikti Lietuvos Respublikos sveikatos apsaugos ministro įsakymo \"Dėl pacientų maitinimo organizavimo asmens sveikatos priežiūros įstaigose tvarkos aprašo\" 2019-08-20 Nr. V-1000 reikalavimus ir aktualias redakcijas",null,null,null,null,null,"atitinka"]
["12.1.2.","tipingos veislei formos ir spalvos",null,null,null,null,null,"tipingos veislei formos ir spalvos"]
["12.1.3.","nepažeisti kenkėjų ar ligų",null,null,null,null,null,"nepažeisti kenkėjų ir ligų"]
["12.1.4.","švarūs, sausi, be pašalinio skonio ir kvapo",null,null,null,null,null,"švarūs, sausi, be pašalinio skonio ir kvapo"]
["12.1.5.","be puvinio ar pelėsio židinių",null,null,null,null,null,"be puvinio ar pelėsio židinių"]
["12.1.6.","skersmuo 6-8 cm",null,null,null,null,null,"skersmuo 6-8 cm"]
["12.2.","Kriaušės",5000,"kg",0.85,{"$f":"IF(ISBLANK(E397),\"\", PRODUCT(C397,E397))","v":4250},"Kriaušės"]
["12.2.1.","tipingos veislei formos ir spalvos",null,null,null,null,null,"tipingos veislei formos ir spalvos"]
["12.2.2.","nepažeistos kenkėjų ar ligų",null,null,null,null,null,"nepažeisti kenkėjų ir ligų"]
["12.2.3.","švarios, sausos, be pašalinio skonio ir kvapo",null,null,null,null,null,"švarios, sausos, be pašalinio skonio ir kvapo"]
["12.2.4.","be puvinio ir pelėsio židinių",null,null,null,null,null,"be puvinių ar pelėsio židinių"]
["12.2.5.","skersmuo 6-8 cm",null,null,null,null,null,"skersmuo 6-8 cm"]
["12.2.6.","gerai prinokę",null,null,null,null,null,"gerai prinokę"]
["12.2.7.","nesuminkštėję",null,null,null,null,null,"nesuminkštėję"]
["12.2.8.","Maisto produktas turi atitikti Lietuvos Respublikos sveikatos apsaugos ministro įsakymo \"Dėl pacientų maitinimo organizavimo asmens sveikatos priežiūros įstaigose tvarkos aprašo\" 2019-08-20 Nr. V-1000 reikalavimus ir aktualias redakcijas",null,null,null,null,null,"atitinka"]
["12.3.","Apelsinai",5000,"kg",0.88,{"$f":"IF(ISBLANK(E406),\"\", PRODUCT(C406,E406))","v":4400},"Apelsinai"]
["12.3.1.","Maisto produktas turi atitikti Lietuvos Respublikos sveikatos apsaugos ministro įsakymo \"Dėl pacientų maitinimo organizavimo asmens sveikatos priežiūros įstaigose tvarkos aprašo\" 2019-08-20 Nr. V-1000 reikalavimus ir aktualias redakcijas",null,null,null,null,null,"atitinka"]
["12.3.2.","nepažeisti kenkėjų ar ligų",null,null,null,null,null,"nepažeisti kenkėjų arba ligų"]
["12.3.3.","be pašalinio skonio ir kvapo, pelėsio, puvinio židinių",null,null,null,null,null,"be pašalinio skonio ir kvapo, pelėsio, puvinioba židinių"]
["12.3.4.","malonaus saldžiarūgščio skonio",null,null,null,null,null,"malonaus saldžiarūgščioba skonio"]
["12.3.5.","vaisiai švarūs, sausi",null,null,null,null,null,"vaisiai švarūs, sausi"]
["12.4.","Bananai",20000,"kg",0.85,{"$f":"IF(ISBLANK(E412),\"\", PRODUCT(C412,E412))","v":17000},"Bananai"]
["12.4.1.","Maisto produktas turi atitikti Lietuvos Respublikos sveikatos apsaugos ministro įsakymo \"Dėl pacientų maitinimo organizavimo asmens sveikatos priežiūros įstaigose tvarkos aprašo\" 2019-08-20 Nr. V-1000 reikalavimus ir aktualias redakcijas",null,null,null,null,null,"atitinka"]
["12.4.2.","vaisiai nepažeisti kenkėjų ar ligų",null,null,null,null,null,"vaisiai nepažeisti kenkėjų ar ligų"]
["12.4.3.","švarūs, sausi",null,null,null,null,null,"švarūs, sausi"]
["12.4.4.","be pašalinio skonio, kvapo, pelėsio, puvinio",null,null,null,null,null,"be pašalinio skonio ir kvapo, pelėsio, puvinio"]
["12.4.5.","nepernokę, žievelės be rudų dėmių, ne žali",null,null,null,null,null,"nepernokę, žievelės be rudų dėmių, geltonos spalvos"]
["12.4.6.","vieno vaisiaus svoris 180-250 g",null,null,null,null,null,"vieno vaisiaus masė 180-250g"]
["12.5.","Mandarinai",500,"kg",0.98,{"$f":"IF(ISBLANK(E419),\"\", PRODUCT(C419,E419))","v":490},"Mandarinai"]
["12.5.1.","Maisto produktas turi atitikti Lietuvos Respublikos sveikatos apsaugos ministro įsakymo \"Dėl pacientų maitinimo organizavimo asmens sveikatos priežiūros įstaigose tvarkos aprašo\" 2019-08-20 Nr. V-1000 reikalavimus ir aktualias redakcijas",null,null,null,null,null,"atitinka"]
["12.5.2.","nepažeisti kenkėjų ar ligų",null,null,null,null,null,"nepažeisti kenkėjų ar ligų"]
["12.5.3.","be pašalinio skonio ir kvapo, pelėsio, puvinio židinių",null,null,null,null,null,"be pašalinio skonio ir kvapo, pelėsio, puvinio židinių"]
["12.5.4.","malonaus saldžiarūgščio skonio",null,null,null,null,null,"nedidelis sėklų kiekis"]
["12.5.5.","vaisiai švarūs, sausi",null,null,null,null,null,"nedidelis sėklų kiekis"]
["12.5.6.","ne labai kaulėti",null,null,null,null,null,"nedidelis sėklų kiekis"]
[null,null,null,null,"Suma be PVM",{"$f":"IF((COUNT(C390:C425)<>COUNT(F390:F425)),\"\", SUM(F390:F425))","v":40840},{"$f":"IF((COUNT(C390:C425)<>COUNT(F390:F425)),\"Neužpildytos visų objektų kainos\", \"\")","v":""}]
[null,null,null,null,"PVM suma",{"$f":"$F$426*0.21","v":8576.4}]
[null,null,null,null,"Suma su PVM",{"$f":"IF(ISBLANK(F427), \"\", SUM(F426:F427))","v":49416.4}]
[]
["13.","Grūdų malimo produktai"]
["13.1.","Miltai",5000,"kg",null,{"$f":"IF(ISBLANK(E431),\"\", PRODUCT(C431,E431))","v":""}]
["13.1.1.","Maisto produktas turi atitikti Lietuvos Respublikos sveikatos apsaugos ministro įsakymo \"Dėl pacientų maitinimo organizavimo asmens sveikatos priežiūros įstaigose tvarkos aprašo\" 2019-08-20 Nr. V-1000 reikalavimus ir aktualias redakcijas"]
["13.1.2.","aukščiausios rūšies"]
["13.1.3.","paruošti iš sveikų, nesudygusių, nesuplėkusių kviečių"]
["13.1.4.","be pašaliniųkvapų, kenkėjų, be pašalinio skonio"]
["13.1.5.","fasuoti po 1-2 kg"]
["13.1.6.","550D"]
["13.1.7.","Produktai turi būti ženklinti nurodant: pavadinimą, kiekį, gamintoją, adresą, telefono numerį, standartą, pagaminimo datą, tinkamumą vartoti iki (nurodant datą), 100g maistinę ir energetinę vertę, laikymo sąlygas"]
["13.2.","Miežinės kruopos",5000,"kg",null,{"$f":"IF(ISBLANK(E439),\"\", PRODUCT(C439,E439))","v":""}]
["13.2.1.","Maisto produktas turi atitikti Lietuvos Respublikos sveikatos apsaugos ministro įsakymo \"Dėl pacientų maitinimo organizavimo asmens sveikatos priežiūros įstaigose tvarkos aprašo\" 2019-08-20 Nr. V-1000 reikalavimus ir aktualias redakcijas"]
["13.2.2.","pagaminta iš geros kokybės grūdų"]
["13.2.3.","be priemaišų, pašalinių kvapų, kenkėjų"]
["13.2.4.","fasuota po 1-5 kg"]
["13.2.5.","Produktai turi būti ženklinti nurodant: pavadinimą, kiekį, gamintoją, adresą, telefono numerį, standartą, pagaminimo datą, tinkamumą vartoti iki (nurodant datą), 100g maistinę ir energetinę vertę, laikymo sąlygas"]
["13.3.","Kvietinės kruopos",5000,"kg",null,{"$f":"IF(ISBLANK(E445),\"\", PRODUCT(C445,E445))","v":""}]
["13.3.1.","Maisto produktas turi atitikti Lietuvos Respublikos sveikatos apsaugos ministro įsakymo \"Dėl pacientų maitinimo organizavimo asmens sveikatos priežiūros įstaigose tvarkos aprašo\" 2019-08-20 Nr. V-1000 reikalavimus ir aktualias redakcijas"]
["13.3.2.","pagaminta iš geros kokybės grūdų"]
["13.3.3.","be priemaišų, pašalinių kvapų, kenkėjų"]
["13.3.4.","fasuota po 1-5 kg"]
["13.3.5.","Produktai turi būti ženklinti nurodant: pavadinimą, kiekį, gamintoją, adresą, telefono numerį, standartą, pagaminimo datą, tinkamumą vartoti iki (nurodant datą), 100g maistinę ir energetinę vertę, laikymo sąlygas"]
["13.4.","Perlinės kruopos",5000,"kg",null,{"$f":"IF(ISBLANK(E451),\"\", PRODUCT(C451,E451))","v":""}]
["13.4.1.","Maisto produktas turi atitikti Lietuvos Respublikos sveikatos apsaugos ministro įsakymo \"Dėl pacientų maitinimo organizavimo asmens sveikatos priežiūros įstaigose tvarkos aprašo\" 2019-08-20 Nr. V-1000 reikalavimus ir aktualias redakcijas"]
["13.4.2.","pagaminta iš geros kokybės grūdų"]
["13.4.3.","be priemaišų, pašalinių kvapų, kenkėjų"]
["13.4.4.","fasuota po 1-5 kg"]
["13.4.5.","Produktai turi būti ženklinti nurodant: pavadinimą, kiekį, gamintoją, adresą, telefono numerį, standartą, pagaminimo datą, tinkamumą vartoti iki (nurodant datą), 100g maistinę ir energetinę vertę, laikymo sąlygas"]
["13.5.","Manų kruopos",6000,"kg",null,{"$f":"IF(ISBLANK(E457),\"\", PRODUCT(C457,E457))","v":""}]
["13.5.1.","Maisto produktas turi atitikti Lietuvos Respublikos sveikatos apsaugos ministro įsakymo \"Dėl pacientų maitinimo organizavimo asmens sveikatos priežiūros įstaigose tvarkos aprašo\" 2019-08-20 Nr. V-1000 reikalavimus ir aktualias redakcijas"]
["13.5.2.","pagaminta iš geros kokybės grūdų"]
["13.5.3.","be priemaišų, pašalinių kvapų, kenkėjų"]
["13.5.4.","fasuota po 1-5 kg"]
["13.5.5.","sausos, nesulipę"]
["13.5.6.","Produktai turi būti ženklinti nurodant: pavadinimą, kiekį, gamintoją, adresą, telefono numerį, standartą, pagaminimo datą, tinkamumą vartoti iki (nurodant datą), 100g maistinę ir energetinę vertę, laikymo sąlygas"]
["13.6.","Grikiai",8000,"kg",null,{"$f":"IF(ISBLANK(E464),\"\", PRODUCT(C464,E464))","v":""}]
["13.6.1.","Maisto produktas turi atitikti Lietuvos Respublikos sveikatos apsaugos ministro įsakymo \"Dėl pacientų maitinimo organizavimo asmens sveikatos priežiūros įstaigose tvarkos aprašo\" 2019-08-20 Nr. V-1000 reikalavimus ir aktualias redakcijas"]
["13.6.2.","geros kokybės"]
["13.6.3.","be priemaišų, pašalinių kvapų, kenkėjų"]
["13.6.4.","fasuota po 1-5 kg"]
["13.6.5.","smulkūs"]
["13.6.6.","Produktai turi būti ženklinti nurodant: pavadinimą, kiekį, gamintoją, adresą, telefono numerį, standartą, pagaminimo datą, tinkamumą vartoti iki (nurodant datą), 100g maistinę ir energetinę vertę, laikymo sąlygas"]
["13.7.","Avižiniai dribsniai",5000,"kg",null,{"$f":"IF(ISBLANK(E471),\"\", PRODUCT(C471,E471))","v":""}]
["13.7.1.","Maisto produktas turi atitikti Lietuvos Respublikos sveikatos apsaugos ministro įsakymo \"Dėl pacientų maitinimo organizavimo asmens sveikatos priežiūros įstaigose tvarkos aprašo\" 2019-08-20 Nr. V-1000 reikalavimus ir aktualias redakcijas"]
["13.7.2.","pagaminta iš geros kokybės grūdų"]
["13.7.3.","be priemaišų, pašalinių kvapų, kenkėjų"]
["13.7.4.","fasuota po 1-5 kg"]
["13.7.5.","vidutinio stambumo"]
["13.7.6.","Produktai turi būti ženklinti nurodant: pavadinimą, kiekį, gamintoją, adresą, telefono numerį, standartą, pagaminimo datą, tinkamumą vartoti iki (nurodant datą), 100g maistinę ir energetinę vertę, laikymo sąlygas"]
["13.8.","Trijų grūdų dribsniai",2000,"kg",null,{"$f":"IF(ISBLANK(E478),\"\", PRODUCT(C478,E478))","v":""}]
["13.8.1.","Maisto produktas turi atitikti Lietuvos Respublikos sveikatos apsaugos ministro įsakymo \"Dėl pacientų maitinimo organizavimo asmens sveikatos priežiūros įstaigose tvarkos aprašo\" 2019-08-20 Nr. V-1000 reikalavimus ir aktualias redakcijas"]
["13.8.2.","pagaminta iš geros kokybės grūdų"]
["13.8.3.","be priemaišų, pašalinių kvapų, kenkėjų"]
["13.8.4.","fasuota po 1-5 kg"]
["13.8.5.","vidutinio stambumo"]
["13.8.6.","Produktai turi būti ženklinti nurodant: pavadinimą, kiekį, gamintoją, adresą, telefono numerį, standartą, pagaminimo datą, tinkamumą vartoti iki (nurodant datą), 100g maistinę ir energetinę vertę, laikymo sąlygas"]
["13.9.","Ryžiai",10000,"kg",null,{"$f":"IF(ISBLANK(E485),\"\", PRODUCT(C485,E485))","v":""}]
["13.9.1.","Maisto produktas turi atitikti Lietuvos Respublikos sveikatos apsaugos ministro įsakymo \"Dėl pacientų maitinimo organizavimo asmens sveikatos priežiūros įstaigose tvarkos aprašo\" 2019-08-20 Nr. V-1000 reikalavimus ir aktualias redakcijas"]
["13.9.2.","geros kokybės"]
["13.9.3.","be priemaišų, pašalinių kvapų, kenkėjų"]
["13.9.4.","fasuota po 1-5 kg"]
["13.9.5.","vidutinio stambumo, neskaldyti, šlifuoti ilgagrūdžiai ryžiai"]
["13.9.6.","šviesios spalvos"]
["13.9.7.","Produktai turi būti ženklinti nurodant: pavadinimą, kiekį, gamintoją, adresą, telefono numerį, standartą, pagaminimo datą, tinkamumą vartoti iki (nurodant datą), 100g maistinę ir energetinę vertę, laikymo sąlygas"]
["13.10.","Sorų kruopos",2000,"kg",null,{"$f":"IF(ISBLANK(E493),\"\", PRODUCT(C493,E493))","v":""}]
["13.10.1.","Maisto produktas turi atitikti Lietuvos Respublikos sveikatos apsaugos ministro įsakymo \"Dėl pacientų maitinimo organizavimo asmens sveikatos priežiūros įstaigose tvarkos aprašo\" 2019-08-20 Nr. V-1000 reikalavimus ir aktualias redakcijas"]
["13.10.2.","pagaminta iš geros kokybės grūdų"]
["13.10.3.","be priemaišų, pašalinių kvapų, kenkėjų"]
["13.10.4.","fasuota po 1-5 kg"]
["13.10.5.","Produktai turi būti ženklinti nurodant: pavadinimą, kiekį, gamintoją, adresą, telefono numerį, standartą, pagaminimo datą, tinkamumą vartoti iki (nurodant datą), 100g maistinę ir energetinę vertę, laikymo sąlygas"]
["13.11.","Kukurūzų kruopos",500,"kg",null,{"$f":"IF(ISBLANK(E499),\"\", PRODUCT(C499,E499))","v":""}]
["13.11.1.","Maisto produktas turi atitikti Lietuvos Respublikos sveikatos apsaugos ministro įsakymo \"Dėl pacientų maitinimo organizavimo asmens sveikatos priežiūros įstaigose tvarkos aprašo\" 2019-08-20 Nr. V-1000 reikalavimus ir aktualias redakcijas"]
["13.11.2.","pagaminta iš geros kokybės grūdų"]
["13.11.3.","be priemaišų, pašalinių kvapų, kenkėjų"]
["13.11.4.","fasuota po 1-5 kg"]
["13.11.5.","smulkaus malimo"]
["13.11.6.","sausi, nesulipę"]
["13.11.7.","Produktai turi būti ženklinti nurodant: pavadinimą, kiekį, gamintoją, adresą, telefono numerį, standartą, pagaminimo datą, tinkamumą vartoti iki (nurodant datą), 100g maistinę ir energetinę vertę, laikymo sąlygas"]
["13.12.","Makaronai",2000,"kg",null,{"$f":"IF(ISBLANK(E507),\"\", PRODUCT(C507,E507))","v":""}]
["13.12.1.","Maisto produktas turi atitikti Lietuvos Respublikos sveikatos apsaugos ministro įsakymo \"Dėl pacientų maitinimo organizavimo asmens sveikatos priežiūros įstaigose tvarkos aprašo\" 2019-08-20 Nr. V-1000 reikalavimus ir aktualias redakcijas"]
["13.12.2.","Trumpieji"]
["13.12.3.","su kiaušiniu"]
["13.12.4.","pagaminti iš aukščiausios rūšies miltų"]
["13.12.5.","Produktai turi būti ženklinti nurodant: pavadinimą, kiekį, gamintoją, adresą, telefono numerį, standartą, pagaminimo datą, tinkamumą vartoti iki (nurodant datą), 100g maistinę ir energetinę vertę, laikymo sąlygas"]
["13.13.","Pilno grūdo makaronai",3000,"kg",null,{"$f":"IF(ISBLANK(E513),\"\", PRODUCT(C513,E513))","v":""}]
["13.13.1.","Maisto produktas turi atitikti Lietuvos Respublikos sveikatos apsaugos ministro įsakymo \"Dėl pacientų maitinimo organizavimo asmens sveikatos priežiūros įstaigose tvarkos aprašo\" 2019-08-20 Nr. V-1000 reikalavimus ir aktualias redakcijas"]
["13.13.2.","Trumpieji"]
["13.13.3.","su kiaušiniu"]
["13.13.4.","pagaminti iš aukščiausios rūšies pilno  grūdo kvietinių miltų"]
["13.13.5.","Produktai turi būti ženklinti nurodant: pavadinimą, kiekį, gamintoją, adresą, telefono numerį, standartą, pagaminimo datą, tinkamumą vartoti iki (nurodant datą), 100g maistinę ir energetinę vertę, laikymo sąlygas"]
["13.14.","Žirniai",4000,"kg",null,{"$f":"IF(ISBLANK(E519),\"\", PRODUCT(C519,E519))","v":""}]
["13.14.1.","Maisto produktas turi atitikti Lietuvos Respublikos sveikatos apsaugos ministro įsakymo \"Dėl pacientų maitinimo organizavimo asmens sveikatos priežiūros įstaigose tvarkos aprašo\" 2019-08-20 Nr. V-1000 reikalavimus ir aktualias redakcijas"]
["13.14.2.","Poliruoti, skaldyti"]
["13.14.3.","nepažeisti kenkėjų"]
["13.14.4.","be priemaišų, pašalinio kvapo ir skonio"]
["13.14.5.","fasuoti po 0,5-2 kg"]
["13.14.6.","Produktai turi būti ženklinti nurodant: pavadinimą, kiekį, gamintoją, adresą, telefono numerį, standartą, pagaminimo datą, tinkamumą vartoti iki (nurodant datą), 100g maistinę ir energetinę vertę, laikymo sąlygas"]
["13.15.","Žalieji lęšiai",2000,"kg",null,{"$f":"IF(ISBLANK(E526),\"\", PRODUCT(C526,E526))","v":""}]
["13.15.1.","Maisto produktas turi atitikti Lietuvos Respublikos sveikatos apsaugos ministro įsakymo \"Dėl pacientų maitinimo organizavimo asmens sveikatos priežiūros įstaigose tvarkos aprašo\" 2019-08-20 Nr. V-1000 reikalavimus ir aktualias redakcijas"]
["13.15.2.","nepažeisti kenkėjų"]
["13.15.3.","be priemaišų, pašalinio kvapo ir skonio"]
["13.15.4.","fasuoti po 0,5-2 kg"]
["13.15.5.","Produktai turi būti ženklinti nurodant: pavadinimą, kiekį, gamintoją, adresą, telefono numerį, standartą, pagaminimo datą, tinkamumą vartoti iki (nurodant datą), 100g maistinę ir energetinę vertę, laikymo sąlygas"]
["13.16.","Pupelės",2000,"kg",null,{"$f":"IF(ISBLANK(E532),\"\", PRODUCT(C532,E532))","v":""}]
["13.16.1.","Maisto produktas turi atitikti Lietuvos Respublikos sveikatos apsaugos ministro įsakymo \"Dėl pacientų maitinimo organizavimo asmens sveikatos priežiūros įstaigose tvarkos aprašo\" 2019-08-20 Nr. V-1000 reikalavimus ir aktualias redakcijas"]
["13.16.2.","baltosios"]
["13.16.3.","nepažeisti kenkėjų"]
["13.16.4.","be priemaišų, pašalinio kvapo ir skonio"]
["13.16.5.","fasuoti po 0,5-2 kg"]
["13.16.6.","Produktai turi būti ženklinti nurodant: pavadinimą, kiekį, gamintoją, adresą, telefono numerį, standartą, pagaminimo datą, tinkamumą vartoti iki (nurodant datą), 100g maistinę ir energetinę vertę, laikymo sąlygas"]
[null,null,null,null,"Suma be PVM",{"$f":"IF((COUNT(C431:C538)<>COUNT(F431:F538)),\"\", SUM(F431:F538))","v":""},{"$f":"IF((COUNT(C431:C538)<>COUNT(F431:F538)),\"Neužpildytos visų objektų kainos\", \"\")","v":"Neužpildytos visų objektų kainos"}]
[null,null,null,null,"PVM suma"]
[null,null,null,null,"Suma su PVM",{"$f":"IF(ISBLANK(F540), \"\", SUM(F539:F540))","v":""}]
[]
["14.","Kiti niekur nepriskirti produktai"]
["14.1.","Actas",300,"L",0.23,{"$f":"IF(ISBLANK(E544),\"\", PRODUCT(C544,E544))","v":69},"Actas"]
["14.1.1.","9 %",null,null,null,null,null,"9 proc"]
["14.1.2.","natūralaus spirito",null,null,null,null,null,"natūralus"]
["14.1.3.","supilstytas buteliuose po 0,5-1 l",null,null,null,null,null,"1l"]
["14.1.4.","Maisto produktas turi atitikti Lietuvos Respublikos sveikatos apsaugos ministro įsakymo \"Dėl pacientų maitinimo organizavimo asmens ",null,null,null,null,null,"Atitinka"]
["14.1.5.","Produktai turi būti ženklinti nurodant: pavadinimą, kiekį, gamintoją, adresą, telefono numerį, standartą, pagaminimo datą, tinkamumą vartoti iki (nurodant datą), 100g maistinę ir energetinę vertę, laikymo sąlygas",null,null,null,null,null,"Ženklinti"]
["14.2.","Soda (geriamoji)",150,"kg",0.6,{"$f":"IF(ISBLANK(E550),\"\", PRODUCT(C550,E550))","v":90},"Soda"]
["14.2.1.","Maisto produktas turi atitikti Lietuvos Respublikos sveikatos apsaugos ministro įsakymo \"Dėl pacientų maitinimo organizavimo asmens sveikatos priežiūros įstaigose tvarkos aprašo\" 2019-08-20 Nr. V-1000 reikalavimus ir aktualias redakcijas",null,null,null,null,null,"Atitinka"]
["14.2.2.","nesudrėkus",null,null,null,null,null,"nesudrėkus"]
["14.2.3.","fasuota po 0,5-1 kg",null,null,null,null,null,"fasuota 1kg "]
["14.2.4.","Produktai turi būti ženklinti nurodant: pavadinimą, kiekį, gamintoją, adresą, telefono numerį, standartą, pagaminimo datą, tinkamumą vartoti iki (nurodant datą), 100g maistinę ir energetinę vertę, laikymo sąlygas",null,null,null,null,null,"Ženklinti"]
["14.3.","Citrinos rūgštis",100,"kg",1.36,{"$f":"IF(ISBLANK(E555),\"\", PRODUCT(C555,E555))","v":136},"Citrinos rūgštis"]
["14.3.1.","Maisto produktas turi atitikti Lietuvos Respublikos sveikatos apsaugos ministro įsakymo \"Dėl pacientų maitinimo organizavimo asmens sveikatos priežiūros įstaigose tvarkos aprašo\" 2019-08-20 Nr. V-1000 reikalavimus ir aktualias redakcijas",null,null,null,null,null,"Atitinka"]
["14.3.2.","nesulipus",null,null,null,null,null,"nesulipus"]
["14.3.3.","turi turėti sertifikatą, kurio kopija turi būti pristatyta i maitinimo skyrių",null,null,null,null,null,"Sertifikuota"]
["14.3.4.","fasuota po 0,1-0,5 kg",null,null,null,null,null,"fasuota 0,5kg"]
["14.3.5.","Produktai turi būti ženklinti nurodant: pavadinimą, kiekį, gamintoją, adresą, telefono numerį, standartą, pagaminimo datą, tinkamumą vartoti iki (nurodant datą), 100g maistinę ir energetinę vertę, laikymo sąlygas",null,null,null,null,null,"Ženklinti"]
["14.4.","Razinos",1000,"kg",1.85,{"$f":"IF(ISBLANK(E561),\"\", PRODUCT(C561,E561))","v":1850},"Razinos"]
["14.4.1.","Maisto produktas turi atitikti Lietuvos Respublikos sveikatos apsaugos ministro įsakymo \"Dėl pacientų maitinimo organizavimo asmens sveikatos priežiūros įstaigose tvarkos aprašo\" 2019-08-20 Nr. V-1000 reikalavimus ir aktualias redakcijas",null,null,null,null,null,"Atitinka"]
["14.4.2.","be kauliukų, vaiskočių",null,null,null,null,null,"be kauliukų, vaiskočių"]
["14.4.3.","be sulipimo požymių",null,null,null,null,null,"be sulipimo požymių"]
["14.4.4.","skonis saldus ar saldžiarūgštis",null,null,null,null,null,"skonis saldžiarūgštis"]
["14.4.5.","be pašalinio skonio, kvapo, pelėsio, puvinio, priemaišų",null,null,null,null,null,"be pašalinio skonio, kvapo, pelėsio, puvinio, priemaišų"]
["14.4.6.","spalva nuo šviesiai gelsvos iki tamsiai rudos",null,null,null,null,null,"Tamsiai rudos"]
["14.4.7.","Produktai turi būti ženklinti nurodant: pavadinimą, kiekį, gamintoją, adresą, telefono numerį, standartą, pagaminimo datą, tinkamumą vartoti iki (nurodant datą), 100g maistinę ir energetinę vertę, laikymo sąlygas",null,null,null,null,null,"Ženklinti"]
["14.5.","Bulvių krakmolas ",1500,"kg",0.74,{"$f":"IF(ISBLANK(E569),\"\", PRODUCT(C569,E569))","v":1110},"Bulvių krakmolas"]
["14.5.1.","Maisto produktas turi atitikti Lietuvos Respublikos sveikatos apsaugos ministro įsakymo \"Dėl pacientų maitinimo organizavimo asmens sveikatos priežiūros įstaigose tvarkos aprašo\" 2019-08-20 Nr. V-1000 reikalavimus ir aktualias redakcijas",null,null,null,null,null,"Atitinka "]
["14.5.2.","baltos spalvos",null,null,null,null,null,"baltos spalvos"]
["14.5.3.","purus",null,null,null,null,null,"purus"]
["14.5.4.","fasuotas po 0,5-1 kg",null,null,null,null,null,"fasuotas 1kg"]
["14.5.5.","Produktai turi būti ženklinti nurodant: pavadinimą, kiekį, gamintoją, adresą, telefono numerį, standartą, pagaminimo datą, tinkamumą vartoti iki (nurodant datą), 100g maistinę ir energetinę vertę, laikymo sąlygas",null,null,null,null,null,"Ženklinti"]
["14.6.","Aliejus",7000,"kg",0.81,{"$f":"IF(ISBLANK(E575),\"\", PRODUCT(C575,E575))","v":5670},"Aliejus"]
["14.6.1.","Maisto produktas turi atitikti Lietuvos Respublikos sveikatos apsaugos ministro įsakymo \"Dėl pacientų maitinimo organizavimo asmens sveikatos priežiūros įstaigose tvarkos aprašo\" 2019-08-20 Nr. V-1000 reikalavimus ir aktualias redakcijas",null,null,null,null,null,"Atitinka"]
["14.6.2.","rafinuotas",null,null,null,null,null,"rafinuotas"]
["14.6.3.","saulėgrąžų",null,null,null,null,null,"saulėgrąžų "]
["14.6.4.","pagamintas iš nemodifikuotų žaliavų",null,null,null,null,null,"pagamintas iš modifikuotų žaliavų "]
["14.6.5.","tinkamas kepimui",null,null,null,null,null,"tinkamas kepimui"]
["14.6.6.","buteliuose po 0,9-3 kg",null,null,null,null,null,"buteliukai 0,9l"]
["14.6.7.","Produktai turi būti ženklinti nurodant: pavadinimą, kiekį, gamintoją, adresą, telefono numerį, standartą, pagaminimo datą, tinkamumą vartoti iki (nurodant datą), 100g maistinę ir energetinę vertę, laikymo sąlygas",null,null,null,null,null,"Ženklinti"]
[null,null,null,null,"Suma be PVM",{"$f":"IF((COUNT(C544:C582)<>COUNT(F544:F582)),\"\", SUM(F544:F582))","v":8925},{"$f":"IF((COUNT(C544:C582)<>COUNT(F544:F582)),\"Neužpildytos visų objektų kainos\", \"\")","v":""}]
[null,null,null,null,"PVM suma",{"$f":"$F$583*0.21","v":1874.25}]
[null,null,null,null,"Suma su PVM",{"$f":"IF(ISBLANK(F584), \"\", SUM(F583:F584))","v":10799.25}]
[]
["15.","Bandelės ir kt."]
["15.1.","Kūčiukai",200,"kg",null,{"$f":"IF(ISBLANK(E588),\"\", PRODUCT(C588,E588))","v":""}]
["15.1.1.","Maisto produktas turi atitikti Lietuvos Respublikos sveikatos apsaugos ministro įsakymo \"Dėl pacientų maitinimo organizavimo asmens sveikatos priežiūros įstaigose tvarkos aprašo\" 2019-08-20 Nr. V-1000 reikalavimus ir aktualias redakcijas"]
["15.1.2.","iš aukščiausios rūšies miltų"]
["15.1.3.","su aguonomis"]
["15.1.4.","paviršius parudęs, neapdegęs"]
["15.1.5.","tiekiami fasuoti po 0,5-2 kg"]
["15.1.6.","Produktai turi būti ženklinti nurodant: pavadinimą, kiekį, gamintoją, adresą, telefono numerį, standartą, pagaminimo datą, tinkamumą vartoti iki (nurodant datą), 100g maistinę ir energetinę vertę, laikymo sąlygas"]
["15.2.","Traškučiai",400,"kg",null,{"$f":"IF(ISBLANK(E595),\"\", PRODUCT(C595,E595))","v":""}]
["15.2.1.","Maisto produktas turi atitikti Lietuvos Respublikos sveikatos apsaugos ministro įsakymo \"Dėl pacientų maitinimo organizavimo asmens sveikatos priežiūros įstaigose tvarkos aprašo\" 2019-08-20 Nr. V-1000 reikalavimus ir aktualias redakcijas"]
["15.2.2.","pagaminti iš aukščiausios rūšies kvietinių miltų"]
["15.2.3.","traškūs"]
["15.2.4.","nesulūžę"]
["15.2.5.","neapdegę"]
["15.2.6.","fasuoti po 0,5-5 kg"]
["15.2.7.","Produktai turi būti ženklinti nurodant: pavadinimą, kiekį, gamintoją, adresą, telefono numerį, standartą, pagaminimo datą, tinkamumą vartoti iki (nurodant datą), 100g maistinę ir energetinę vertę, laikymo sąlygas"]
["15.3.","Džiūvėsiai",1000,"kg",null,{"$f":"IF(ISBLANK(E603),\"\", PRODUCT(C603,E603))","v":""}]
["15.3.1.","Maisto produktas turi atitikti Lietuvos Respublikos sveikatos apsaugos ministro įsakymo \"Dėl pacientų maitinimo organizavimo asmens sveikatos priežiūros įstaigose tvarkos aprašo\" 2019-08-20 Nr. V-1000 reikalavimus ir aktualias redakcijas"]
["15.3.2.","pagaminti iš aukščiausios rūšies kvietinių miltų"]
["15.3.3.","pieniški, vaniliniai"]
["15.3.4.","neapdegę, nesulūžę"]
["15.3.5.","fasuoti po 3-5 kg"]
["15.3.6.","traškūs"]
["15.3.7.","Produktai turi būti ženklinti nurodant: pavadinimą, kiekį, gamintoją, adresą, telefono numerį, standartą, pagaminimo datą, tinkamumą vartoti iki (nurodant datą), 100g maistinę ir energetinę vertę, laikymo sąlygas"]
["15.4.","Bandelės",15000,"vnt.",null,{"$f":"IF(ISBLANK(E611),\"\", PRODUCT(C611,E611))","v":""}]
["15.4.1.","Maisto produktas turi atitikti Lietuvos Respublikos sveikatos apsaugos ministro įsakymo \"Dėl pacientų maitinimo organizavimo asmens sveikatos priežiūros įstaigose tvarkos aprašo\" 2019-08-20 Nr. V-1000 reikalavimus ir aktualias redakcijas"]
["15.4.2.","pagaminti iš aukščiausios rūšies viso grūdo miltų"]
["15.4.3.","paviršius neapdegęs"]
["15.4.4.","minkštimas iškepęs, elastingas"]
["15.4.5.","vienos bandelės svoris 50 +/- 2 g"]
["15.4.6.","Produktai turi būti ženklinti nurodant: pavadinimą, kiekį, gamintoją, adresą, telefono numerį, standartą, pagaminimo datą, tinkamumą vartoti iki (nurodant datą), 100g maistinę ir energetinę vertę, laikymo sąlygas"]
[null,null,null,null,"Suma be PVM",{"$f":"IF((COUNT(C588:C617)<>COUNT(F588:F617)),\"\", SUM(F588:F617))","v":""},{"$f":"IF((COUNT(C588:C617)<>COUNT(F588:F617)),\"Neužpildytos visų objektų kainos\", \"\")","v":"Neužpildytos visų objektų kainos"}]
[null,null,null,null,"PVM suma"]
[null,null,null,null,"Suma su PVM",{"$f":"IF(ISBLANK(F619), \"\", SUM(F618:F619))","v":""}]
[]
["16.","Cukrus"]
["16.1.","Cukrus",10000,"kg",0.41,{"$f":"IF(ISBLANK(E623),\"\", PRODUCT(C623,E623))","v":4100},"Cukrus"]
["16.1.1.","nesulipęs",null,null,null,null,null,"nesulipęs"]
["16.1.2.","nesudrėkęs",null,null,null,null,null,"nesudrėkęs"]
["16.1.3.","fasuotas po 0,9-1 kg",null,null,null,null,null,"fasuotas 1kg "]
["16.1.4.","Maisto produktas turi atitikti Lietuvos Respublikos sveikatos apsaugos ministro įsakymo \"Dėl pacientų maitinimo organizavimo asmens sveikatos priežiūros įstaigose tvarkos aprašo\" 2019-08-20 Nr. V-1000 reikalavimus ir aktualias redakcijas",null,null,null,null,null,"Atitinka"]
["16.1.5.","Produktai turi būti ženklinti nurodant: pavadinimą, kiekį, gamintoją, adresą, telefono numerį, standartą, pagaminimo datą, tinkamumą vartoti iki (nurodant datą), 100g maistinę ir energetinę vertę, laikymo sąlygas",null,null,null,null,null,"Ženklinti"]
[null,null,null,null,"Suma be PVM",{"$f":"IF((COUNT(C623:C628)<>COUNT(F623:F628)),\"\", SUM(F623:F628))","v":4100},{"$f":"IF((COUNT(C623:C628)<>COUNT(F623:F628)),\"Neužpildytos visų objektų kainos\", \"\")","v":""}]
[null,null,null,null,"PVM suma",{"$f":"F629*0.21","v":861}]
[null,null,null,null,"Suma su PVM",{"$f":"IF(ISBLANK(F630), \"\", SUM(F629:F630))","v":4961}]
[]
["17.","Duona ir jos gaminiai"]
["17.1.","Tamsi duona",50000,"kg",null,{"$f":"IF(ISBLANK(E634),\"\", PRODUCT(C634,E634))","v":""}]
["17.1.1.","Maisto produktas turi atitikti Lietuvos Respublikos sveikatos apsaugos ministro įsakymo \"Dėl pacientų maitinimo organizavimo asmens sveikatos priežiūros įstaigose tvarkos aprašo\" 2019-08-20 Nr. V-1000 reikalavimus ir aktualias redakcijas"]
["17.1.2.","pagaminta iš aukščiausios rūšies kvietinių ir ruginių miltų"]
["17.1.3.","pluta neapdegusi"]
["17.1.4.","raikyta"]
["17.1.5.","minkštimas ne drėgnas"]
["17.1.6.","supakuota polimeriniuose maišeliuose"]
["17.1.7.","ovalios formos"]
["17.1.8.","kepalo svoris 0,7-1 kg"]
["17.1.9.","Produktai turi būti ženklinti nurodant: pavadinimą, kiekį, gamintoją, adresą, telefono numerį, standartą, pagaminimo datą, tinkamumą vartoti iki (nurodant datą), 100g maistinę ir energetinę vertę, laikymo sąlygas"]
["17.2.","Duona su sėlenomis",20000,"kg",null,{"$f":"IF(ISBLANK(E644),\"\", PRODUCT(C644,E644))","v":""}]
["17.2.1.","Maisto produktas turi atitikti Lietuvos Respublikos sveikatos apsaugos ministro įsakymo \"Dėl pacientų maitinimo organizavimo asmens sveikatos priežiūros įstaigose tvarkos aprašo\" 2019-08-20 Nr. V-1000 reikalavimus ir aktualias redakcijas"]
["17.2.2.","sėlenų 50-55 %"]
["17.2.3.","pagaminta iš aukščiausios rūšies kvietinių arba ruginių miltų"]
["17.2.4.","pluta neapdegusi"]
["17.2.5.","raikyta"]
["17.2.6.","minkštimas ne drėgnas"]
["17.2.7.","supakuota polimeriniuose maišeliuose"]
["17.2.8.","ovalios formos"]
["17.2.9.","kepalo svoris 0,5-1 kg"]
["17.2.10.","Produktai turi būti ženklinti nurodant: pavadinimą, kiekį, gamintoją, adresą, telefono numerį, standartą, pagaminimo datą, tinkamumą vartoti iki (nurodant datą), 100g maistinę ir energetinę vertę, laikymo sąlygas"]
["17.3.","Batonas",50000,"kg",null,{"$f":"IF(ISBLANK(E655),\"\", PRODUCT(C655,E655))","v":""}]
["17.3.1.","Maisto produktas turi atitikti Lietuvos Respublikos sveikatos apsaugos ministro įsakymo \"Dėl pacientų maitinimo organizavimo asmens sveikatos priežiūros įstaigose tvarkos aprašo\" 2019-08-20 Nr. V-1000 reikalavimus ir aktualias redakcijas"]
["17.3.2.","iš aukščiausios rūšies kvietinių miltų"]
["17.3.3.","be sukraus"]
["17.3.4.","pluta neapdegusi"]
["17.3.5.","raikytas"]
["17.3.6.","minkštimas ne drėgnas"]
["17.3.7.","supakuotas polimeriniuose maišeliuose"]
["17.3.8.","ovalios formos"]
["17.3.9.","vieneto svoris 0,45-0,6 kg"]
["17.3.10.","Produktai turi būti ženklinti nurodant: pavadinimą, kiekį, gamintoją, adresą, telefono numerį, standartą, pagaminimo datą, tinkamumą vartoti iki (nurodant datą), 100g maistinę ir energetinę vertę, laikymo sąlygas"]
[null,null,null,null,"Suma be PVM",{"$f":"IF((COUNT(C634:C665)<>COUNT(F634:F665)),\"\", SUM(F634:F665))","v":""},{"$f":"IF((COUNT(C634:C665)<>COUNT(F634:F665)),\"Neužpildytos visų objektų kainos\", \"\")","v":"Neužpildytos visų objektų kainos"}]
[null,null,null,null,"PVM suma"]
[null,null,null,null,"Suma su PVM",{"$f":"IF(ISBLANK(F667), \"\", SUM(F666:F667))","v":""}]
[]
["18.","Kiaušiniai"]
["18.1.","Kiaušiniai",250000,"vnt.",7.0000000000000007E-2,{"$f":"IF(ISBLANK(E671),\"\", PRODUCT(C671,E671))","v":17500},"Kiaušiniai"]
["18.1.1.","Maisto produktas turi atitikti Lietuvos Respublikos sveikatos apsaugos ministro įsakymo \"Dėl pacientų maitinimo organizavimo asmens sveikatos priežiūros įstaigose tvarkos aprašo\" 2019-08-20 Nr. V-1000 reikalavimus ir aktualias redakcijas",null,null,null,null,null,"Atitinka"]
["18.1.2.","neįskilę, nesutrūkę",null,null,null,null,null,"neįskilę nesutrūkę "]
["18.1.3.","A klasės",null,null,null,null,null,"A klasė "]
["18.1.4.","L dydžio",null,null,null,null,null,"L dydis"]
["18.1.5.","Pristatomi dėklai po 10-30 vnt",null,null,null,null,null,"dėklai po 10vnt"]
["18.1.6.","Turi būti švarūs",null,null,null,null,null,"švarūs"]
["18.1.7.","Produktai turi būti ženklinti nurodant: pavadinimą, kiekį, gamintoją, adresą, telefono numerį, standartą, pagaminimo datą, tinkamumą vartoti iki (nurodant datą), 100g maistinę ir energetinę vertę, laikymo sąlygas",null,null,null,null,null,"Ženklinti"]
[null,null,null,null,"Suma be PVM",{"$f":"IF((COUNT(C671:C678)<>COUNT(F671:F678)),\"\", SUM(F671:F678))","v":17500},{"$f":"IF((COUNT(C671:C678)<>COUNT(F671:F678)),\"Neužpildytos visų objektų kainos\", \"\")","v":""}]
[null,null,null,null,"PVM suma",{"$f":"$F$679*0.21","v":3675}]
[null,null,null,null,"Suma su PVM",{"$f":"IF(ISBLANK(F680), \"\", SUM(F679:F680))","v":21175}]
[]
["19.","Prieskoniai"]
["19.-5.","Druska (valgomoji)",3500,"kg",0.18,{"$f":"IF(ISBLANK(E684),\"\", PRODUCT(C684,E684))","v":630},"Druska"]
["19.-5.1.","Maisto produktas turi atitikti Lietuvos Respublikos sveikatos apsaugos ministro įsakymo \"Dėl pacientų maitinimo organizavimo asmens sveikatos priežiūros įstaigose tvarkos aprašo\" 2019-08-20 Nr. V-1000 reikalavimus ir aktualias redakcijas",null,null,null,null,null,"Atitinka"]
["19.-5.2.","maistinė, rupi, joduota druska",null,null,null,null,null,"maistinė, rupi, joduota druska"]
["19.-5.3.","fasuota hermetiškuose pakeliuose po 0,8-1 kg",null,null,null,null,null,"Fasuota hermetiškuose pakeliuose po 1kg"]
["19.-5.4.","Produktai turi būti ženklinti nurodant: pavadinimą, kiekį, gamintoją, adresą, telefono numerį, standartą, pagaminimo datą, tinkamumą vartoti iki (nurodant datą), 100g maistinę ir energetinę vertę, laikymo sąlygas",null,null,null,null,null,"Ženklinti"]
["19.-6.","Lauro lapai",50,"kg",3.5,{"$f":"IF(ISBLANK(E689),\"\", PRODUCT(C689,E689))","v":175},"Lauro lapai"]
["19.-6.1.","Maisto produktas turi atitikti Lietuvos Respublikos sveikatos apsaugos ministro įsakymo \"Dėl pacientų maitinimo organizavimo asmens sveikatos priežiūros įstaigose tvarkos aprašo\" 2019-08-20 Nr. V-1000 reikalavimus ir aktualias redakcijas",null,null,null,null,null,"Atitinka "]
["19.-6.2.","sausi, švarūs, nepažeisti kenkėjų",null,null,null,null,null,"sausi, švarūs, nepažeisti kenkėjų "]
["19.-6.3.","fasuoti polietileniniuose maišeliuose po 0,1-0,2 kg",null,null,null,null,null,"fasuota polietileniniuose maišeliuose 0,2kg"]
["19.-6.4.","Produktai turi būti ženklinti nurodant: pavadinimą, kiekį, gamintoją, adresą, telefono numerį, standartą, pagaminimo datą, tinkamumą vartoti iki (nurodant datą), 100g maistinę ir energetinę vertę, laikymo sąlygas",null,null,null,null,null,"ženklinti"]
["19.-6.","Pipirai kvepiantys",80,"kg",5,{"$f":"IF(ISBLANK(E694),\"\", PRODUCT(C694,E694))","v":400},"Kvapieji pipirai"]
["19.-6.1.","Maisto produktas turi atitikti Lietuvos Respublikos sveikatos apsaugos ministro įsakymo \"Dėl pacientų maitinimo organizavimo asmens sveikatos priežiūros įstaigose tvarkos aprašo\" 2019-08-20 Nr. V-1000 reikalavimus ir aktualias redakcijas",null,null,null,null,null,"Atitinka"]
["19.-6.2.","nemalti",null,null,null,null,null,"nemalti, grūdeliais"]
["19.-6.3.","fasuoti po 0,1-0,2 kg",null,null,null,null,null,"fasuoti 0,1kg"]
["19.-6.4.","Produktai turi būti ženklinti nurodant: pavadinimą, kiekį, gamintoją, adresą, telefono numerį, standartą, pagaminimo datą, tinkamumą vartoti iki (nurodant datą), 100g maistinę ir energetinę vertę, laikymo sąlygas",null,null,null,null,null,"Ženklinti"]
["19.-6.","Pipirai kartūs (juodieji)",100,"kg",4.5,{"$f":"IF(ISBLANK(E699),\"\", PRODUCT(C699,E699))","v":450},"Juodieji pipirai"]
["19.-6.1.","Maisto produktas turi atitikti Lietuvos Respublikos sveikatos apsaugos ministro įsakymo \"Dėl pacientų maitinimo organizavimo asmens sveikatos priežiūros įstaigose tvarkos aprašo\" 2019-08-20 Nr. V-1000 reikalavimus ir aktualias redakcijas",null,null,null,null,null,"Atitinka"]
["19.-6.2.","malti",null,null,null,null,null,"malti"]
["19.-6.3.","fasuoti po 0,1-0,2 kg",null,null,null,null,null,"fasuoti 0,1kg"]
["19.-6.4.","Produktai turi būti ženklinti nurodant: pavadinimą, kiekį, gamintoją, adresą, telefono numerį, standartą, pagaminimo datą, tinkamumą vartoti iki (nurodant datą), 100g maistinę ir energetinę vertę, laikymo sąlygas",null,null,null,null,null,"Ženklinti"]
["19.-8.","Džiovintų prieskonių mišinys",200,"kg",1.55,{"$f":"IF(ISBLANK(E704),\"\", PRODUCT(C704,E704))","v":310},"Džiovintų prieskonių mišinys"]
["19.-8.1.","Maisto produktas turi atitikti Lietuvos Respublikos sveikatos apsaugos ministro įsakymo \"Dėl pacientų maitinimo organizavimo asmens sveikatos priežiūros įstaigose tvarkos aprašo\" 2019-08-20 Nr. V-1000 reikalavimus ir aktualias redakcijas",null,null,null,null,null,"Atitinka"]
["19.-8.2.","be druskos",null,null,null,null,null,"be druskos"]
["19.-8.3.","fasuoti po 0,1-0,5 kg",null,null,null,null,null,"fasuoti 0,5kg"]
["19.-8.4.","Produktai turi būti ženklinti nurodant: pavadinimą, kiekį, gamintoją, adresą, telefono numerį, standartą, pagaminimo datą, tinkamumą vartoti iki (nurodant datą), 100g maistinę ir energetinę vertę, laikymo sąlygas",null,null,null,null,null,"Ženklinti"]
["19.6.","Kmynai",300,"kg",1.35,{"$f":"IF(ISBLANK(E709),\"\", PRODUCT(C709,E709))","v":405},"Kmynai"]
["19.6.1.","Maisto produktas turi atitikti Lietuvos Respublikos sveikatos apsaugos ministro įsakymo \"Dėl pacientų maitinimo organizavimo asmens sveikatos priežiūros įstaigose tvarkos aprašo\" 2019-08-20 Nr. V-1000 reikalavimus ir aktualias redakcijas",null,null,null,null,null,"Atitinka"]
["19.6.2.","Be pašalinio skonio, kvapo, priemaišų",null,null,null,null,null,"be pašalinio skonio,kvapo, priemaišų"]
["19.6.3.","fasuoti po 0,5-1 kg",null,null,null,null,null,"fasuoti 1kg"]
["19.6.4.","Produktai turi būti ženklinti nurodant: pavadinimą, kiekį, gamintoją, adresą, telefono numerį, standartą, pagaminimo datą, tinkamumą vartoti iki (nurodant datą), 100g maistinę ir energetinę vertę, laikymo sąlygas",null,null,null,null,null,"Ženklinti"]
[null,null,null,null,"Suma be PVM",{"$f":"IF((COUNT(C684:C713)<>COUNT(F684:F713)),\"\", SUM(F684:F713))","v":2370},{"$f":"IF((COUNT(C684:C713)<>COUNT(F684:F713)),\"Neužpildytos visų objektų kainos\", \"\")","v":""}]
[null,null,null,null,"PVM suma",{"$f":"$F$714*0.21","v":497.7}]
[null,null,null,null,"Suma su PVM",{"$f":"IF(ISBLANK(F715), \"\", SUM(F714:F715))","v":2867.7}]
[]
["20.","Kava, arbata, mineralinis vanduo"]
["20.0.","Mineralinis vanduo prisotintas angliarūgšte",200,"L",0.64,{"$f":"IF(ISBLANK(E719),\"\", PRODUCT(C719,E719))","v":128},"Mineralinis vanduo gazuotas"]
["20.0.1.","Maisto produktas turi atitikti Lietuvos Respublikos sveikatos apsaugos ministro įsakymo \"Dėl pacientų maitinimo organizavimo asmens sveikatos priežiūros įstaigose tvarkos aprašo\" 2019-08-20 Nr. V-1000 reikalavimus ir aktualias redakcijas",null,null,null,null,null,"Atitinka"]
["20.0.2.","buteliais po 0,5 l",null,null,null,null,null,"buteliukai 0,5l"]
["20.0.3.","prisotintas angliarūgšte",null,null,null,null,null,"gazuotas"]
["20.0.4.","natūralus",null,null,null,null,null,"natūralus"]
["20.0.5.","taros depozito kaina sumuojama prie mineralinio vandens kainos",null,null,null,null,null,"įskaičiuota"]
["20.0.6.","Produktai turi būti ženklinti nurodant: pavadinimą, kiekį, gamintoją, adresą, telefono numerį, standartą, pagaminimo datą, tinkamumą vartoti iki (nurodant datą), 100g maistinę ir energetinę vertę, laikymo sąlygas",null,null,null,null,null,"Ženklinta"]
["20.-1.","Mineralinis vanduo neprisotintas angliarūgšte",400,"L",0.64,{"$f":"IF(ISBLANK(E726),\"\", PRODUCT(C726,E726))","v":256},"Mineralinis vanduo negazuotas"]
["20.-1.1.","Maisto produktas turi atitikti Lietuvos Respublikos sveikatos apsaugos ministro įsakymo \"Dėl pacientų maitinimo organizavimo asmens sveikatos priežiūros įstaigose tvarkos aprašo\" 2019-08-20 Nr. V-1000 reikalavimus ir aktualias redakcijas",null,null,null,null,null,"Atitinka"]
["20.-1.2.","buteliais po 0,5 l",null,null,null,null,null,"buteliukai 0,5l"]
["20.-1.3.","neprisotintas angliarūgšte",null,null,null,null,null,"negazuotas"]
["20.-1.4.","natūralus",null,null,null,null,null,"natūralus"]
["20.-1.5.","taros depozito kaina sumuojama prie mineralinio vandens kainos",null,null,null,null,null,"įskaičiuota"]
["20.-1.6.","Produktai turi būti ženklinti nurodant: pavadinimą, kiekį, gamintoją, adresą, telefono numerį, standartą, pagaminimo datą, tinkamumą vartoti iki (nurodant datą), 100g maistinę ir energetinę vertę, laikymo sąlygas",null,null,null,null,null,"Ženklinta"]
["20.-2.","Kava (natūrali)",500,"kg",4.96,{"$f":"IF(ISBLANK(E733),\"\", PRODUCT(C733,E733))","v":2480},"Kava Paulig"]
["20.-2.1.","Maisto produktas turi atitikti Lietuvos Respublikos sveikatos apsaugos ministro įsakymo \"Dėl pacientų maitinimo organizavimo asmens sveikatos priežiūros įstaigose tvarkos aprašo\" 2019-08-20 Nr. V-1000 reikalavimus ir aktualias redakcijas",null,null,null,null,null,"Atitinka"]
["20.-2.2.","aukščiausios rūšies 100% arabikos pupelių",null,null,null,null,null,"pagaminta iš 100proc arabikos pupelių"]
["20.-2.3.","natūrali",null,null,null,null,null,"natūrali"]
["20.-2.4.","hermetiškoje taroje",null,null,null,null,null,"hermetiška tara"]
["20.-2.5.","malta",null,null,null,null,null,"malta"]
["20.-2.6.","fasuota po 0,25-0,5 kg",null,null,null,null,null,"fasuota 0,5kg"]
["20.-2.7.","Produktai turi būti ženklinti nurodant: pavadinimą, kiekį, gamintoją, adresą, telefono numerį, standartą, pagaminimo datą, tinkamumą vartoti iki (nurodant datą), 100g maistinę ir energetinę vertę, laikymo sąlygas",null,null,null,null,null,"Ženklinta"]
["20.-2.","Juodoji arbata",800,"kg",4.2,{"$f":"IF(ISBLANK(E741),\"\", PRODUCT(C741,E741))","v":3360},"Juodoji arbata Kinijos Juo Nan"]
["20.-2.1.","Maisto produktas turi atitikti Lietuvos Respublikos sveikatos apsaugos ministro įsakymo \"Dėl pacientų maitinimo organizavimo asmens sveikatos priežiūros įstaigose tvarkos aprašo\" 2019-08-20 Nr. V-1000 reikalavimus ir aktualias redakcijas",null,null,null,null,null,"Atitinka"]
["20.-2.2.","stambialapė (negranuliuota)",null,null,null,null,null,"stambialapė "]
["20.-2.3.","sveriama",null,null,null,null,null,"sveriama"]
["20.-2.4.","pakeliuose po 0,5-1 kg",null,null,null,null,null,"pakeliuose 1kg"]
["20.-2.5.","Prekės iškraunamos nemokamai maitinimo skyriaus sandėliuose Josvainių g. 2, Baltijos g. 120, Laisvės al. 17, Kaunas. Prekės turi būti pristatytos ne vėliau kaip iki kitos dienos 6:30-7:30 val. (1, 2, 3, 4, 5, 6, 17 pirkimo objekto dalių produktai) arba 6:30-11:00 val. (7, 8, 9, 10, 11, 12, 13, 14, 15, 16, 18, 19, 20, 21 pirkimo objekto dalių produktai) nuo užsakymo pateikimo dienos (išskyrus sekmadienius)\n\n\nProduktai turi būti ženklinti nurodant: pavadinimą, kiekį, gamintoją, adresą, telefono numerį, standartą, pagaminimo datą, tinkamumą vartoti iki (nurodant datą), 100 g. maistinę ir energetinę vertes, laikymo sąlygas.\n\nJei Tiekėjas, ne dėl užsakovo kaltės, vėluoja pristatyti Prekes po sutartyje numatyto termino skaičiuoti 10 % baudą nuo vėluojamų pristatyti Prekių kainos be PVM. Jei prekes vėluojama pristatyti daugiau nei 3 val. nuo sutartyje nustatyto laiko - tai laikoma esminiu Sutarties pažeidimu."]
["20.-2.6.","Produktai turi būti ženklinti nurodant: pavadinimą, kiekį, gamintoją, adresą, telefono numerį, standartą, pagaminimo datą, tinkamumą vartoti iki (nurodant datą), 100g maistinę ir energetinę vertę, laikymo sąlygas"]
[null,null,null,null,"Suma be PVM",{"$f":"IF((COUNT(C719:C747)<>COUNT(F719:F747)),\"\", SUM(F719:F747))","v":6224},{"$f":"IF((COUNT(C719:C747)<>COUNT(F719:F747)),\"Neužpildytos visų objektų kainos\", \"\")","v":""}]
[null,null,null,null,"PVM suma",{"$f":"$F$748*0.21","v":1307.04}]
[null,null,null,null,"Suma su PVM",{"$f":"IF(ISBLANK(F749), \"\", SUM(F748:F749))","v":7531.04}]
[]
["21.","Šviežios daržovės 2"]
["21.-1.","Kopūstai",25000,"kg",0.32,{"$f":"IF(ISBLANK(E753),\"\", PRODUCT(C753,E753))","v":8000},"Kopūstai"]
["21.-1.1.","Maisto produktas turi atitikti Lietuvos Respublikos sveikatos apsaugos ministro įsakymo \"Dėl pacientų maitinimo organizavimo asmens sveikatos priežiūros įstaigose tvarkos aprašo\" 2019-08-20 Nr. V-1000 reikalavimus ir aktualias redakcijas",null,null,null,null,null,"atitinka"]
["21.-1.2.","švarūs, nepažeisti kenkėjų ir ligų, sausi, be pašalinio skonio ir kvapo, be puvinio, pelėsio",null,null,null,null,null,"švarūs nepažeisti kenkėjų ir ligų, sausi, be pašalinio skonio ir kvapo, be puvinio ir pelėsio"]
["21.-1.3.","be mechaninių pažeidimų",null,null,null,null,null,"be mechaninių pažeidimų"]
["21.-1.4.","nuvalyti iki glaudžiai gūžę gaubiančių lapų",null,null,null,null,null,"nuvalyti iki glaudžiai gūžę gaubiančių lapų"]
["21.-1.5.","diametras ne mažiau 15 cm",null,null,null,null,null,"diametras ne mažiau 15 cm."]
["21.-2.","Švieži agurkai",10000,"kg",1.3,{"$f":"IF(ISBLANK(E759),\"\", PRODUCT(C759,E759))","v":13000},"Švieži agurkai"]
["21.-2.1.","Maisto produktas turi atitikti Lietuvos Respublikos sveikatos apsaugos ministro įsakymo \"Dėl pacientų maitinimo organizavimo asmens sveikatos priežiūros įstaigose tvarkos aprašo\" 2019-08-20 Nr. V-1000 reikalavimus ir aktualias redakcijas",null,null,null,null,null,"atitinka"]
["21.-2.2.","Nepažeisti kenkėjų ar ligų, be pelėsio, puvinio, be pašalio skonio ar kvapo, švarūs, sausi",null,null,null,null,null,"nepažeisti kenkėjų ar ligų, be pelėsio, puvinio, be pašalinio skonio ar kvapo, švarūs, sausi"]
["21.-2.3.","pjūvyje stangrūs su neišsivysčiusiomis sėklomis",null,null,null,null,null,"pjūvyje stangrūnio skonio ar kvapo, švarūs, sausi"]
["21.-2.4.","nesušalę, nepageltę, ne raukšlėti",null,null,null,null,null,"nnio skonio ar kvapo, švarūs, sausi"]
["21.-2.5.","trenpavaisių agurkų ilgis ne daugiau 15 cm, o ilgavaisių ne daugiau 25 cm",null,null,null,null,null,"trenpavaisių agurkų ilgis ne daugiau 15 cm, o ilgavaisių nnio skonio ar kvapo, švarūs, sausi"]
["21.-2.","Švieži pomidorai",8000,"kg",1.3,{"$f":"IF(ISBLANK(E765),\"\", PRODUCT(C765,E765))","v":10400},"Švieži pomidorai"]
["21.-2.1.","Maisto produktas turi atitikti Lietuvos Respublikos sveikatos apsaugos ministro įsakymo \"Dėl pacientų maitinimo organizavimo asmens sveikatos priežiūros įstaigose tvarkos aprašo\" 2019-08-20 Nr. V-1000 reikalavimus ir aktualias redakcijas",null,null,null,null,null,"atitinka"]
["21.-2.2.","Nepažeisti kenkėjų ar ligų, be pelėsio, puvinio, be pašalio skonio ar kvapo, švarūs, sausi",null,null,null,null,null,"nepažeisti kenkėjų ar ligų, be pelėsio, puvinio, be pašalinio skonio ar kvapo, švarūs, sausi"]
["21.-2.3.","šviesios ar tamsesnės raudonos spalvos",null,null,null,null,null,"šviesios ar tamsesnės raudonos spalvos"]
["21.-2.4.","odelės nepažeistos",null,null,null,null,null,"odelės nepažeistos"]
["21.-2.5.","standžios konsistencijos",null,null,null,null,null,"standžios konsistencijos"]
["21.-2.6.","diametras ne mažesnis 4 cm",null,null,null,null,null,"diametras ne mažesnis 4 cm"]
["21.-2.","Pekino salotos (kininis kopūstas)",3500,"kg",0.85,{"$f":"IF(ISBLANK(E772),\"\", PRODUCT(C772,E772))","v":2975},"Kininis kopūstas (Pekino salotos)"]
["21.-2.1.","Maisto produktas turi atitikti Lietuvos Respublikos sveikatos apsaugos ministro įsakymo \"Dėl pacientų maitinimo organizavimo asmens sveikatos priežiūros įstaigose tvarkos aprašo\" 2019-08-20 Nr. V-1000 reikalavimus ir aktualias redakcijas",null,null,null,null,null,"atitinka"]
["21.-2.2.","Nepažeisti kenkėjų ar ligų, be pelėsio, puvinio, be pašalio skonio ar kvapo, švarūs, sausi",null,null,null,null,null,"nepažeisti kenkėjų ar ligų, be pelėsio, puvinio, be pašalinio skonio ar kvapo, švarūs, sausi"]
["21.-2.3.","neapvytę, nepageltę, be žemių",null,null,null,null,null,"neapvytę, nepageltę, be žemių"]
["21.-4.","Porai",500,"kg",1.03,{"$f":"IF(ISBLANK(E776),\"\", PRODUCT(C776,E776))","v":515},"Porai"]
["21.-4.1.","Maisto produktas turi atitikti Lietuvos Respublikos sveikatos apsaugos ministro įsakymo \"Dėl pacientų maitinimo organizavimo asmens sveikatos priežiūros įstaigose tvarkos aprašo\" 2019-08-20 Nr. V-1000 reikalavimus ir aktualias redakcijas",null,null,null,null,null,"atitinka"]
["21.-4.2.","Nepažeisti kenkėjų ar ligų, be pelėsio, puvinio, be pašalio skonio ar kvapo, švarūs, sausi",null,null,null,null,null,"nepažeisti kenkėjų ar ligų, be pelėsio, puvinio, be pašalinio skonio ar kvapo, švarūs, sausi"]
["21.-4.3.","neapvytę, nepageltę, be žemių",null,null,null,null,null,"neapvytę, nepageltę, be žemių"]
["21.-4.4.","baltoji dalis tvirta, žalioji nesuvytusi",null,null,null,null,null,"baltoji dalis tvirta, žalioji nesuvytusi"]
["21.-4.5.","30-40 cm ilgio",null,null,null,null,null,"30-40 cm ilgio"]
[null,null,null,null,"Suma be PVM",{"$f":"IF((COUNT(C753:C781)<>COUNT(F753:F781)),\"\", SUM(F753:F781))","v":34890},{"$f":"IF((COUNT(C753:C781)<>COUNT(F753:F781)),\"Neužpildytos visų objektų kainos\", \"\")","v":""}]
[null,null,null,null,"PVM suma",{"$f":"$F$782*0.21","v":7326.9}]
[null,null,null,null,"Suma su PVM",{"$f":"IF(ISBLANK(F783), \"\", SUM(F782:F783))","v":42216.9}]

{"sheet":"Subtiekėjai","index":1,"n_rows":100,"n_cols":9,"rows_kept":100,"cut":false,"hidden":false,"merged":[[38,0,38,9],[21,1,21,6],[21,7,21,9],[24,0,24,3],[24,4,24,9],[25,0,25,9],[26,0,26,9],[28,0,28,9],[32,0,32,3],[32,4,32,9],[35,0,35,3],[35,4,35,9],[18,1,18,6],[18,7,18,9],[19,1,19,6],[19,7,19,9],[20,1,20,6],[20,7,20,9],[17,1,17,6],[17,7,17,9],[7,0,7,1],[7,2,7,4],[7,5,7,7],[7,8,7,9],[8,0,8,1],[8,2,8,4],[8,5,8,7],[8,8,8,9],[10,0,10,9],[12,0,12,9],[14,0,14,9],[16,1,16,6],[16,7,16,9],[5,0,5,1],[5,2,5,4],[5,5,5,7],[5,8,5,9],[6,0,6,1],[6,2,6,4],[6,5,6,7],[6,8,6,9],[4,0,4,1],[4,2,4,4],[4,5,4,7],[4,8,4,9],[1,0,1,9],[3,0,3,1],[3,2,3,4],[3,5,3,7],[3,8,3,9]]}
[]
["Sutarties vykdymui numatome pasitelkti šiuos subtiekėjus / subteikėjus / subrangovus (įrašyti visus subtiekėjus / subteikėjus / subrangovus nepriklausomai nuo tiekiamų prekių/ teikiamų paslaugų/ atliekamų darbų vertės):"]
[]
["Subtiekėjo / subteikėjo / subrangovo (-ų) pavadinimas (-ai)",null,"Adresas",null,null,"Trumpas aprašymas",null,null,"Procentas nuo pasiūlymo kainos be PVM"]
[]
[]
[]
[]
[]
[]
["Jeigu pirkimo dokumentų 18 punkte numatytas subtiekimo / subteikimo / subrangos apribojimas:\nMes patvirtiname, kad subtiekėjams / subteikėjams / subrangovams (tiekėjams, kuriuos pasamdysime dalies sutartyje numatytų prekių tiekimui /paslaugų teikimui / darbų atlikimui) perduodamų tiekti prekių / teikti paslaugų/ atlikti darbų dalis neviršys       proc. pasiūlymo kainos be PVM."]
[]
["Mes patvirtiname, kad esame / nesame (nereikalingą išbraukti) laikomi asocijuotais (susijusiais) su Perkančiąja organizacija pagal Lietuvos Respublikoje galiojančių teisės aktų (Lietuvos Respublikos pelno mokesčio, Lietuvos Respublikos pridėtinės vertės mokesčio ir Lietuvos Respublikos gyventojų pajamų mokesčio įstatymų) nuostatas. "]
[]
["Kartu su pasiūlymu pateikiami šie dokumentai:"]
[]
["Eil.Nr.","\"Pateiktų skaitmeninių dokumentų (ar jų kopijų) pavadinimas\n(pasiūlymą sudarančių konfidencialių dokumentų pavadinimai pažymėti prierašu KONFIDENCIALU)\"",null,null,null,null,null,"Prisegtos bylos (failo) pavadinimas "]
[]
[]
[]
[]
[]
[]
[]
["Pasiūlymo galiojimo užtikrinimui pateikiame :"]
[]
["(Nurodyti užtikrinimo būdą, dydį, dokumentus)"]
[]
["\nPasiūlymas galioja iki termino, nustatyto pirkimo dokumentuose.\n\nPasiūlymo neatskiriama dalis yra (rašoma, jeigu buvo reikalauta prie pasiūlymo pridėti atitinkamą dokumentą)"]
[]
[]
[]
["Tiekėjo arba jo įgalioto asmens pareigų pavadinimas"]
[]
[]
["Pasirašančio asmens vardas ir pavardė"]
[]
[]
["**kadangi visas pasiūlymas pasirašomas saugiu elektroniniu parašu, šio dokumento atskirai pasirašyti neprivaloma."]
[]
[]
[]
[]
[]
[]
[]
[]
[]
[]
[]
[]
[]
[]
[]
[]
[]
[]
[]
[]
[]
[]
[]
[]
[]
[]
[]
[]
[]
[]
[]
[]
[]
[]
[]
[]
[]
[]
[]
[]
[]
[]
[]
[]
[]
[]
[]
[]
[]
[]
[]
[]
[]
[]
[]
[]
[]
[]
[]
[]
["3878-1 2020-03-17 10:08:06"]